Cogmind - Beta 11.1 @@@ ROGUE MODE // 2022.05.18 @ 18:04:46 // Winter2019/RPGLIKE Player: Infomantis Result: Heading to fleet! Performance ------------- Evolutions (9) 4500 Regions Visited (30) 6000 Robots Destroyed (609) 3045 Value Destroyed (30031) 30031 Prototype IDs (92) 1840 Alien Tech Used (9) 1800 Bonus (-93742) -93742 TOTAL SCORE: -46526 Bonus ------- High Alert Combat Kills 7906 Follower Combat Kills 1348 Met Imprinter 300 Met Zhirov 300 A7 Reached Mainframe 300 Met R17 at Cetus 500 Used Core Reset Matrix 3000 Hacked Protovariant 500 Met R17 at Research 2000 Scanned by Researcher 500 Acquired SGEMP 2000 Win 3000 Friendly Fire -115396 Cogmind --------- Core Integrity 34/1150 Matter 400/400 Energy 293/1950 System Corruption 0% Temperature Cool (10) Movement Walking (92) Location To Fleet Rendezvous Parts ------- > --- POWER (3) -------- Hybrid Antimatter Reactor Quantum Reactor Improved Quantum Reactor > --- PROPULSION (6) --- Improved VSS Leg Advanced VSS Leg Experimental Flexi-carbon Leg Myomer Exoskeleton > --- UTILITY (9) ------ Machine Analyzer Advanced Signal Interpreter Improved Terrain Scanner Improved Particle Accelerator Improved Weapon Cycler Advanced Transmission Jammer Improved Energy Mantle System Mapper > --- WEAPON (7) ------- Quantum Rifle Cooled Plasma Cannon Cooled Plasma Cannon Cooled Plasma Cannon Improved Potential Cannon Neutron Missile Launcher > --- INVENTORY (7) ---- Improved System Restoration Module Subatomic Replicator Omega Cannon Peak State ------------ > --- POWER ------------ Hybrid Antimatter Reactor Quantum Reactor Improved Quantum Reactor > --- PROPULSION ------- Improved VSS Leg Advanced VSS Leg Experimental Flexi-carbon Leg Myomer Exoskeleton > --- UTILITY ---------- 2N-1CE's Frost Array Machine Analyzer Advanced Signal Interpreter Improved Terrain Scanner Improved Particle Accelerator Improved Weapon Cycler Advanced Transmission Jammer Improved Energy Mantle System Mapper > --- WEAPON ----------- Gamma Rifle Cooled Plasma Cannon Cooled Plasma Cannon Cooled Plasma Cannon Improved Potential Cannon Neutron Missile Launcher > --- INVENTORY -------- Improved System Restoration Module Transdimensional Reconstructor Subatomic Replicator Omega Cannon SGEMP Prototype [Rating: 214] Favorites ----------- Power Quantum Reactor Engine Light Angular Momentum Engine Power Core Light Nuclear Core Reactor Quantum Reactor Propulsion Improved VSS Leg Leg Improved VSS Leg Wheel Wheel Utility Improved Terrain Scanner Device Improved Terrain Scanner Storage Advanced Energy Well Processor Machine Analyzer Hackware System Mapper Protection Reactive Plating Weapon Cooled Plasma Cannon Energy Gun Medium Laser Energy Cannon Cooled Plasma Cannon Ballistic Gun Improved Heavy Machine Gun Ballistic Cannon Light Cannon Launcher Neutron Missile Launcher Special Weapon Improved Plasma Cutter Impact Weapon Heavy Hammer Slashing Weapon Axe Build | -11 -10 -10 -9 -9 -8 -7 -7 -6 -6 -6 -6 -5 -5 -5 -5 -5 -5 -4 -4 -4 -4 -4 -4 -3 -3 -3 -2 -2 -2 -1 ------- Run | Scr Mat Min Mat Min Mat Fac Sto Fac Low Low Zio Pro Fac Ext Cet Arc Hub Fac Was Fac Upp Upp Zhi Pro Res Tes Res Qua Sec Acc Slots Evolved 20 | 3 1 . 3 1 1 1 1 1 . 1 . . . 1 1 . . . . . . . . 1 1 1 . 1 1 . Power 2 | . . . . . 1 . . . . . . . . 1 . . . . . . . . . . . . . . . . Propulsion 5 | 1 . . 1 . . . . 1 . . . . . . 1 . . . . . . . . 1 . . . . . . Utility 7 | 1 1 . 1 1 . . 1 . . . . . . . . . . . . . . . . . 1 . . 1 . . Weapon 6 | 1 . . 1 . . 1 . . . 1 . . . . . . . . . . . . . . . 1 . . 1 . Parts Attached 272 | 7 6 11 22 7 8 14 15 5 1 5 3 1 23 5 4 2 . 3 1 16 1 1 6 10 19 47 2 4 20 3 Power 32 | 1 . . 6 2 1 2 . 1 . . . . 3 1 3 . . . . 3 . . 1 1 4 3 . . . . Engine 13 | 1 . . 6 2 . 1 . . . . . . 2 . . . . . . . . . . 1 . . . . . . Core 5 | . . . . . 1 1 . . . . . . 1 1 . . . . . 1 . . . . . . . . . . Reactor 14 | . . . . . . . . 1 . . . . . . 3 . . . . 2 . . 1 . 4 3 . . . . Propulsion 34 | 2 . . 6 . . 1 . 2 . . . . 2 2 1 . . . . 5 1 . . . 3 8 . . 1 . Treads . | . . . . . . . . . . . . . . . . . . . . . . . . . . . . . . . Leg 31 | . . . 5 . . 1 . 2 . . . . 2 2 1 . . . . 5 1 . . . 3 8 . . 1 . Wheel 3 | 2 . . 1 . . . . . . . . . . . . . . . . . . . . . . . . . . . Hover . | . . . . . . . . . . . . . . . . . . . . . . . . . . . . . . . Flight . | . . . . . . . . . . . . . . . . . . . . . . . . . . . . . . . Utility 117 | 2 2 5 3 4 1 3 7 2 1 4 2 . 11 1 . 2 . 1 . 8 . 1 5 3 10 18 2 4 13 2 Device 104 | 2 1 4 2 4 . 2 5 2 1 3 2 . 11 1 . 2 . 1 . 8 . 1 4 3 10 14 2 4 13 2 Storage 3 | . . . . . . . . . . . . . . . . . . . . . . . 1 . . 2 . . . . Processor 4 | . 1 1 1 . . . . . . 1 . . . . . . . . . . . . . . . . . . . . Hackware 2 | . . . . . . . . . . . . . . . . . . . . . . . . . . 2 . . . . Protection 4 | . . . . . 1 1 2 . . . . . . . . . . . . . . . . . . . . . . . Artifact . | . . . . . . . . . . . . . . . . . . . . . . . . . . . . . . . Weapon 89 | 2 4 6 7 1 6 8 8 . . 1 1 1 7 1 . . . 2 1 . . . . 6 2 18 . . 6 1 Energy Gun 16 | 1 3 2 1 . 1 . . . . . 1 . 1 . . . . . . . . . . . . 3 . . 2 1 Energy Cannon 17 | . . . . . . . 1 . . . . . 5 . . . . 1 1 . . . . . . 6 . . 3 . Ballistic Gun 21 | 1 . 2 3 1 5 3 6 . . . . . . . . . . . . . . . . . . . . . . . Ballistic Cannon 4 | . . . 2 . . . . . . . . . . . . . . . . . . . . . . 1 . . 1 . Launcher 14 | . . . . . . 2 1 . . . . 1 . . . . . . . . . . . 4 . 6 . . . . Special Weapon 8 | . . . . . . . . . . 1 . . . 1 . . . 1 . . . . . 2 1 2 . . . . Impact Weapon 3 | . 1 2 . . . . . . . . . . . . . . . . . . . . . . . . . . . . Slashing Weapon 6 | . . . 1 . . 3 . . . . . . 1 . . . . . . . . . . . 1 . . . . . Piercing Weapon . | . . . . . . . . . . . . . . . . . . . . . . . . . . . . . . . Special Melee Weapon . | . . . . . . . . . . . . . . . . . . . . . . . . . . . . . . . Unidentified Prototypes 58 | . . 1 2 1 1 . 3 1 . 1 1 . 2 . . . . . . 2 . 1 4 3 6 23 . 1 4 1 Corrupted Parts 2 | . . 2 . . . . . . . . . . . . . . . . . . . . . . . . . . . . System Corruption 6 | . . 6 . . . . . . . . . . . . . . . . . . . . . . . . . . . . Parts Lost 6 | . . 1 1 . . . . . . . . 1 . . . . . . 1 . . . . 1 . 1 . . . . Power 1 | . . . . . . . . . . . . . . . . . . . . . . . . 1 . . . . . . Propulsion 2 | . . . 1 . . . . . . . . . . . . . . . 1 . . . . . . . . . . . Utility 1 | . . . . . . . . . . . . . . . . . . . . . . . . . . 1 . . . . Weapon 2 | . . 1 . . . . . . . . . 1 . . . . . . . . . . . . . . . . . . Highest Loss Streak 1 | . . 1 1 . . . . . . . . 1 . . . . . . 1 . . . . 1 . 1 . . . . To Critical Strikes . | . . . . . . . . . . . . . . . . . . . . . . . . . . . . . . . Average Slot Usage (%) 96 | . 99 99 97 100 99 98 99 99 99 99 96 82 87 99 99 100 100 100 94 98 100 99 100 95 98 91 86 87 86 87 Engine 3 | . 13 12 9 8 7 7 6 6 6 5 5 5 3 . . . . . . . . . . . 1 . . . . . Reactor 8 | . . . . . . . . 3 6 5 5 5 5 5 12 15 15 15 12 14 15 15 15 13 12 13 13 12 12 12 Leg 21 | . . . 19 25 23 20 20 24 25 22 22 22 22 20 22 25 25 25 22 24 25 25 25 23 26 20 17 16 16 16 Wheel 2 | . 27 25 5 . . . . . . . . . . . . . . . . . . . . . . . . . . . Device 23 | . 27 24 18 22 19 14 16 18 20 25 27 27 26 26 25 25 25 25 25 25 25 24 25 23 24 24 21 25 24 23 Processor 10 | . 2 12 16 16 15 14 13 12 12 11 11 11 11 10 10 10 10 10 10 10 10 10 10 9 9 8 8 8 8 8 Energy Gun 1 | . 23 16 1 . . . . . . . 1 5 3 . . . . . . . . . . . . . . . 2 4 Energy Cannon 11 | . . . . . . . . . . . . . 6 21 20 20 20 20 20 20 20 20 20 19 18 17 17 16 15 16 Ballistic Gun 6 | . . 4 17 16 19 21 24 25 25 22 17 . . . . . . . . . . . . . . . . . . . Special Weapon 2 | . . . . . . . . . . 4 5 . . . 5 5 5 5 5 5 5 5 5 3 4 . . . . . Slashing Weapon 1 | . . . 7 8 2 1 2 . . . . . 2 4 . . . . . . . . . . . . . . . . Naked Turns . | . . . . . . . . . . . . . . . . . . . . . . . . . . . . . . . Heaviest Build 134 | 11 12 12 20 26 39 41 46 53 53 48 48 47 68 82 99 100 99 99 99 103 102 102 105 112 110 130 128 128 134 134 Greatest Support 166 | 26 26 26 36 36 46 46 46 69 69 69 69 69 87 92 107 107 107 107 107 110 110 110 110 110 143 166 166 166 166 166 Greatest Overweight (x) 8 | . . . 1 . . . . . . . . . . 1 . . . . . . . . . 8 . . . . . . Average Overweight (x) . | . . . . . . . . . . . . . . . . . . . . . . . . . . . . . . . Largest Inventory Capacity 7 | 2 3 3 3 3 5 5 5 6 6 6 6 6 6 6 6 6 6 7 7 7 7 7 7 7 7 7 7 7 7 7 Average Capacity 5 | 1 2 3 3 3 4 5 5 5 6 6 6 6 6 6 6 6 6 6 7 7 7 7 7 7 7 7 7 7 7 7 Most Carried 7 | 1 2 3 3 3 5 5 5 6 6 6 6 6 6 6 6 6 6 7 7 7 7 7 7 7 7 7 7 7 7 6 Average Carried 5 | . 1 2 2 2 3 4 4 5 6 5 5 5 5 5 6 6 6 6 6 6 6 6 6 6 6 6 7 6 6 4 Final Capacity 7 | 2 3 3 3 3 5 5 5 6 6 6 6 6 6 6 6 6 6 7 7 7 7 7 7 7 7 7 7 7 7 7 Final Carried 7 | 1 2 3 3 3 5 5 5 6 6 5 6 6 6 6 6 6 6 7 7 7 7 7 7 7 7 7 7 7 6 4 Class Distribution -------------------- 42% | Generator-Skirmisher 24% | Hacker-Skirmisher 11% | Hacker-Assassin 6% | Mutant 4% | Generator-Mutant 4% | Hacker-Mutant Dominant Class ---------------- Mutant | -10/Materials Mutant | -10/Mines Hacker-Assassin | -9/Materials Hacker-Assassin | -9/Mines Hacker-Skirmisher | -8/Materials Hacker-Skirmisher | -7/Factory Hacker-Skirmisher | -7/Storage Hacker-Skirmisher | -6/Factory Hacker-Skirmisher | -6/Lower Caves Hacker-Skirmisher | -6/Lower Caves Hacker-Mutant | -6/Zion Hacker-Skirmisher | -5/Proximity Caves Hacker-Assassin | -5/Factory Hacker-Assassin | -5/Extension Generator-Skirmisher | -5/Cetus Generator-Mutant | -5/Archives Generator-Skirmisher | -5/Hub_04(d) Generator-Skirmisher | -4/Factory Hacker-Skirmisher | -4/Waste Generator-Skirmisher | -4/Factory Generator-Skirmisher | -4/Upper Caves Generator-Skirmisher | -4/Upper Caves Generator-Mutant | -4/Zhirov Generator-Skirmisher | -3/Proximity Caves Generator-Gunner | -3/Research Generator-Skirmisher | -3/Testing Hacker-Skirmisher | -2/Research Hacker-Mutant | -2/Quarantine Hacker-Skirmisher | -2/Section 7 Hacker-Skirmisher | -1/Access Resources | -11 -10 -10 -9 -9 -8 -7 -7 -6 -6 -6 -6 -5 -5 -5 -5 -5 -5 -4 -4 -4 -4 -4 -4 -3 -3 -3 -2 -2 -2 -1 ----------- Run | Scr Mat Min Mat Min Mat Fac Sto Fac Low Low Zio Pro Fac Ext Cet Arc Hub Fac Was Fac Upp Upp Zhi Pro Res Tes Res Qua Sec Acc Matter Collected 10685 | 279 132 81 1445 226 1231 561 1600 1056 250 266 32 50 260 30 60 20 . 10 . 207 10 19 21 1750 182 564 20 50 213 60 Remotely . | . . . . . . . . . . . . . . . . . . . . . . . . . . . . . . . Salvage Created 28294 | 40 627 229 1623 307 2135 568 1360 1800 514 305 . 588 914 1506 674 502 270 389 . 1328 424 591 282 1966 728 2585 2440 846 2255 498 Parts 1777 | 5 53 7 126 28 134 35 83 100 19 19 . 30 29 44 20 25 6 12 . 84 32 26 5 515 20 105 88 37 81 9 Haulers Intercepted 24 | . 2 . 6 . 3 . 3 1 . . . . 2 1 . . . 1 . . . . . . 2 . 2 . . 1 Recyclers Shooed 11 | . 1 1 1 . . . 1 2 . . . . . 1 . . . . . 2 . . . . . 1 1 . . . Parts Field Recycled . | . . . . . . . . . . . . . . . . . . . . . . . . . . . . . . . Retrieved Matter . | . . . . . . . . . . . . . . . . . . . . . . . . . . . . . . . Parts Self-Destructed 205 | . . . . . . . . . 19 16 4 33 . . . . . . . . 34 26 5 68 . . . . . . Prevented . | . . . . . . . . . . . . . . . . . . . . . . . . . . . . . . . Kills | -11 -10 -10 -9 -9 -8 -7 -7 -6 -6 -6 -6 -5 -5 -5 -5 -5 -5 -4 -4 -4 -4 -4 -4 -3 -3 -3 -2 -2 -2 -1 ------- Run | Scr Mat Min Mat Min Mat Fac Sto Fac Low Low Zio Pro Fac Ext Cet Arc Hub Fac Was Fac Upp Upp Zhi Pro Res Tes Res Qua Sec Acc Combat Hostiles Destroyed 467 | . 9 18 36 10 33 16 31 34 9 11 . 17 15 19 10 4 3 3 . 24 15 9 . 21 6 43 29 11 27 4 Guns 221 | . 8 18 36 10 33 12 30 34 9 11 . 11 5 . . . . . . . . . . . . 3 . . 1 . Cannons 170 | . . . . . . . . . . . . . 4 13 9 3 3 . . 19 13 7 . 19 3 28 19 5 23 2 AOE 35 | . 1 . . . . 4 1 . . . . 5 5 . . . . 2 . . . . . . . 4 5 6 . 2 Classes Destroyed 30 | 1 5 3 4 . 4 2 1 1 . 2 . 1 . . . . . . . . . . . 1 . 4 1 . . . Worker 32 | . 3 1 4 1 2 1 3 1 . . . . 1 . . . . 2 . 5 . . . . . 5 3 . . . Builder 27 | . 5 . 5 . 5 . . 3 . . . . . 1 . . . . . 1 . . . . . 4 2 1 . . Tunneler 5 | 2 1 . . 1 . . . . . . . . . . . . . 1 . . . . . . . . . . . . Hauler 24 | . 2 . 6 . 3 . 3 1 . . . . 2 1 . . . 1 . . . . . . 2 . 2 . . 1 Recycler 9 | . . . 1 1 2 . 1 1 . . . . . 1 . . . . . 2 . . . . . . . . . . Carrier 1 | . . . . . . . . . . . . . . . . . . . . . . . . . . . 1 . . . Minesweeper 3 | . . . . . . . . . . . . 2 . . . . . . . . 1 . . . . . . . . . Mechanic 1 | . . . 1 . . . . . . . . . . . . . . . . . . . . . . . . . . . Operator 16 | . . . . . 3 . 1 1 . . . . . 1 . 4 . 1 . 1 . . . . 1 . . 1 2 . Drone 532 | . . . . . . . . . . . . . . . . . . . . . . . . 532 . . . . . . Watcher 30 | . 3 . 5 . 5 2 2 2 . . . . 1 3 1 . . . . 2 . . . . 1 1 2 . . . Swarmer 57 | . . 3 6 2 5 . 6 6 . 8 . 5 4 . 2 . . . . . 5 2 . 1 . 1 . . 1 . Cutter 3 | . . . . . 3 . . . . . . . . . . . . . . . . . . . . . . . . . Saboteur 4 | . . . . . . . . 1 . . . . . . . . . . . . . . . . . 2 . 1 . . Grunt 191 | . 9 . 21 8 12 10 9 16 8 . . 10 2 12 3 . 3 . . 6 1 3 . 7 1 16 15 7 9 3 Brawler 13 | . . . . . . 2 1 1 . . . 1 . 1 . . . . . 1 1 1 . . . 3 1 . . . Duelist 12 | . . . 1 . . . . . 1 . . . . . . . . . . 1 2 . . 1 . 3 1 1 1 . Protector 8 | . . . . . . . 1 1 . . . . . . . . . . . . . . . 4 . 1 1 . . . Researcher 3 | . . . . . . . . . . . . . . . . . . . . . . . . . . 1 . 1 1 . Sentry 70 | . . . 8 . 9 . 12 5 . 1 . 1 3 5 . 4 . . . 5 1 2 . 3 3 . 3 1 4 . Demolisher 6 | . . 2 . . . . . . . . . . . . . . . . . . . . . 4 . . . . . . Specialist 3 | . . . . . . . . . . . . . . . . . . . . . . . . . . 3 . . . . Hunter 32 | . . . . . 3 2 . 2 . . . . 1 . . . . . . 7 2 . . . 2 4 2 . 7 . Programmer 32 | . . . . . . 2 2 2 . . . . 4 . . . . 2 . 4 2 . . . . 7 4 1 2 . Heavy 2 | . . . . . 1 . . . . . . . . . . . . . . . . . . . . . 1 . . . Behemoth 9 | . . . . . . . . . . 1 . . 1 1 . . . 1 . . 1 1 . 1 . . 1 . . 1 Cetus Guard 5 | . . . . . . . . . . . . . . . 5 . . . . . . . . . . . . . . . S7 Guard 3 | . . . . . . . . . . . . . . . . . . . . . . . . . . . . . 3 . Striker 2 | . . . . . . . . . . . . . . . . . . . . . . . . . . 2 . . . . Alpha 7 1 | . . . . . . . . . . . . . . . . . . . . . . . . . . 1 . . . . Assembled 13 | . . 13 . . . . . . . . . . . . . . . . . . . . . . . . . . . . Savage 2 | . . . . . . . . . . . . . . . 2 . . . . . . . . . . . . . . . Mutant 1 | . . . . . . . . . . 1 . . . . . . . . . . . . . . . . . . . . Best Kill Streak 13 | 2 4 7 7 6 8 5 7 7 3 6 . 5 4 5 4 4 3 5 . 13 5 7 . 11 2 12 10 9 12 3 Combat Bots Only 11 | . 3 7 6 4 5 4 7 6 3 6 . 5 4 5 3 4 3 3 . 9 5 7 . 11 2 8 9 9 10 3 Max Kills in Single Turn 20 | 1 2 1 2 2 2 2 2 2 1 2 . 2 2 2 3 1 1 4 . 3 1 2 . 20 1 5 5 4 1 3 Gunslinging 1 | . . . 1 1 . . 1 1 . 1 . . . . . . . . . . . . . . . . . . . . Exploded 3 | . 1 . . . . 2 1 . . . . 2 2 . . . . 2 . . . . . . . 2 3 3 . 2 Melee . | . . . . . . . . . . . . . . . . . . . . . . . . . . . . . . . Uniques/NPCs Destroyed 3 | . . . . . . . . . . . . . . . . . . . . . . . . . . . . . . 3 Zhirov (-1/Access) Svarog (-1/Access) Perun (-1/Access) Combat | -11 -10 -10 -9 -9 -8 -7 -7 -6 -6 -6 -6 -5 -5 -5 -5 -5 -5 -4 -4 -4 -4 -4 -4 -3 -3 -3 -2 -2 -2 -1 -------- Run | Scr Mat Min Mat Min Mat Fac Sto Fac Low Low Zio Pro Fac Ext Cet Arc Hub Fac Was Fac Upp Upp Zhi Pro Res Tes Res Qua Sec Acc Damage Taken 17358 | . 478 1192 1078 106 816 685 1177 836 336 596 . 677 489 651 178 81 81 197 37 1041 225 128 . 982 215 1474 984 175 1605 838 Core 13519 | . 394 981 878 83 632 530 847 613 255 467 . 548 379 529 142 63 66 155 29 811 174 104 . 720 166 1166 763 136 1250 638 Absorbed by Shields 4572 | . . . . 31 166 . . . . . . . . . 87 . . . . 657 217 122 . 321 142 484 927 167 919 332 Redirected to Core 11775 | . 263 748 674 65 538 467 729 527 237 444 . 430 379 427 118 63 50 155 29 762 156 82 . 630 147 1068 717 128 1142 600 Core Remaining (%) 72 | 100 . 14 . 100 98 . 96 . . . . 100 . . . . 93 . . . . . . 74 . 100 . . 25 2 Volleys Fired 1364 | 3 125 68 188 22 120 54 88 64 15 21 1 25 27 41 17 25 8 10 . 39 28 12 5 115 16 65 52 17 70 23 Largest 5 | 2 2 2 2 2 3 4 4 4 4 4 1 1 4 4 4 4 4 4 . 5 5 5 1 5 5 5 4 4 4 5 Hottest 399 | 70 100 100 75 56 83 105 75 60 60 60 15 250 250 140 140 140 140 140 . 160 160 160 20 160 160 221 305 305 180 399 Shots Fired 3730 | 6 250 136 341 44 316 156 286 256 60 81 1 25 45 146 63 56 20 40 . 167 113 52 5 265 68 226 163 42 232 69 Gun 1988 | 6 250 136 329 44 316 153 284 256 60 81 1 21 13 . . . . . . . . . . . . 5 . . 32 1 Cannon 1608 | . . . 12 . . . . . . . . . 29 146 63 54 20 40 . 144 112 48 . 189 64 214 163 42 200 68 Launcher 80 | . . . . . . 3 2 . . . . 4 3 . . . . . . . . . . 64 . 4 . . . . Special 54 | . . . . . . . . . . . . . . . . 2 . . . 23 1 4 5 12 4 3 . . . . Kinetic 1569 | 3 24 15 332 44 316 153 284 256 60 81 1 . . . . . . . . . . . . . . . . . . . Thermal 2028 | 3 226 121 9 . . . . . . . . 21 42 146 63 56 20 40 . 167 113 52 5 201 68 201 163 42 200 69 Explosive 80 | . . . . . . 3 2 . . . . 4 3 . . . . . . . . . . 64 . 4 . . . . Electromagnetic 50 | . . . . . . . . . . . . . . . . . . . . . . . . . . 18 . . 32 . Robot Hit Streak 37 | 1 8 9 24 15 10 12 19 17 14 21 . 20 13 23 15 16 13 12 . 33 32 37 7 34 13 25 31 5 32 23 Robot Miss Streak 7 | 1 4 3 3 2 5 3 3 3 2 2 . 6 7 1 3 1 1 1 . 2 1 1 . 3 4 2 2 4 3 2 Penetration Max . | . . . . . . . . . . . . . . . . . . . . . . . . . . . . . . . Secondary Targets 39 | . 3 6 3 2 2 3 5 9 3 3 . . . . . . . . . . . . . . . . . . . . Max Gunslinging Chain 1 | . 1 1 1 1 1 1 1 1 1 1 . . . . . . . . . . . . . . . . . . . . Shots Hit Robots 2140 | 3 64 75 153 27 140 109 199 147 46 52 . 22 29 103 41 31 9 22 . 94 81 32 5 134 40 133 119 19 161 50 Core Hits 1439 | 2 36 36 76 15 78 46 81 75 20 17 . 50 47 37 21 14 5 7 . 47 27 12 5 463 10 73 53 13 61 12 Critical Kills 24 | . . . . . . . 1 . . . . . . 4 . 1 . . . 3 2 1 . 2 2 4 3 . 1 . Critical Parts Destroyed 5 | . . 1 2 . 1 . 1 . . . . . . . . . . . . . . . . . . . . . . . Critical Strikes 37 | . 3 5 2 . 1 . 2 . . . . . . 4 . 1 . . . 3 2 1 . 2 2 4 3 . 2 . Burn 7 | . 3 4 . . . . . . . . . . . . . . . . . . . . . . . . . . . . Meltdown 23 | . . . . . . . . . . . . . . 4 . 1 . . . 3 2 1 . 2 2 4 3 . 1 . Destroy 5 | . . . 2 . 1 . 2 . . . . . . . . . . . . . . . . . . . . . . . Corrupt 1 | . . . . . . . . . . . . . . . . . . . . . . . . . . . . . 1 . Smash 1 | . . 1 . . . . . . . . . . . . . . . . . . . . . . . . . . . . Melee Attacks 52 | . 20 3 14 . . 14 . . . . . . 1 . . . . . . . . . . . . . . . . . Impact 23 | . 20 3 . . . . . . . . . . . . . . . . . . . . . . . . . . . . Slashing 29 | . . . 14 . . 14 . . . . . . 1 . . . . . . . . . . . . . . . . . Piercing . | . . . . . . . . . . . . . . . . . . . . . . . . . . . . . . . Sneak Attacks 6 | . 2 1 3 . . . . . . . . . . . . . . . . . . . . . . . . . . . Combat Hostiles . | . . . . . . . . . . . . . . . . . . . . . . . . . . . . . . . Follow-up Attacks . | . . . . . . . . . . . . . . . . . . . . . . . . . . . . . . . Damage Inflicted 148462 | 35 1179 1037 3605 543 3408 2758 5423 4569 1260 1512 . 2303 2733 3812 1711 1076 319 1207 . 4761 2803 1185 92 67434 2094 9128 8658 2509 7230 4078 Guns 26710 | 35 782 925 2877 542 3066 1972 4942 4522 1260 1512 . 1858 1380 . . . . . . . . . . . . 256 . . 729 52 Cannons 49042 | . . . . . . . . . . . . . 646 3796 1711 1059 319 771 . 3495 2803 1165 . 5832 1981 6978 7190 1562 6376 3358 Explosions 71016 | . 151 . 481 . 307 486 406 . . . . 445 707 . . . . 436 . 1032 . . . 61513 . 1881 1468 911 124 668 Melee 852 | . 246 112 241 . . 253 . . . . . . . . . . . . . . . . . . . . . . . . Ramming 489 | . . . 6 1 35 47 75 47 . . . . . 16 . . . . . 117 . . . . 95 13 . 36 1 . Kinetic 20736 | 22 46 . 2852 542 3066 1972 4942 4522 1260 1512 . . . . . . . . . . . . . . . . . . . . Thermal 60383 | 13 736 925 506 . 276 250 . . . . . 1858 2101 3796 1711 1076 319 1154 . 4101 2803 1185 92 7072 1999 6701 8658 2473 6500 4078 Explosive 64038 | . 69 . . . . 236 406 . . . . 445 338 . . . . . . 543 . . . 60362 . 1639 . . . . Electromagnetic 1964 | . 82 . . . 31 . . . . . . . 294 . . . . 53 . . . . . . . 775 . . 729 . Impact 358 | . 246 112 . . . . . . . . . . . . . . . . . . . . . . . . . . . . Slashing 494 | . . . 241 . . 253 . . . . . . . . . . . . . . . . . . . . . . . . Piercing . | . . . . . . . . . . . . . . . . . . . . . . . . . . . . . . . Highest Corruption 6 | . . 6 . . . 4 1 . . 1 . . 1 . . . . . 5 6 . . . . . 2 . . . . Average Corruption 2 | . . 5 . . . 1 1 . . 1 . . 1 . . . . . 5 4 . . . . . 1 . . . . Corruption Purged 17 | . . . . . . 4 1 . . 1 . . 2 . . . . . . 6 . . . . . 3 . . . . Corruption Blocked 65 | . . . . . . . . . . . . . . . . . . . . . . . . . . 45 . . 20 . Effects 27 | . . 3 . . . 6 . . . 2 . . . . . . . . 1 11 . . . . . 4 . . . . Message Errors 7 | . . . . . . 1 . . . . . . . . . . . . 1 4 . . . . . 1 . . . . Matter Fused 7 | . . 2 . . . 1 . . . 1 . . . . . . . . . 2 . . . . . 1 . . . . Heat Flow Errors 2 | . . . . . . 1 . . . 1 . . . . . . . . . . . . . . . . . . . . Energy Discharges 5 | . . 1 . . . 2 . . . . . . . . . . . . . 2 . . . . . . . . . . Data Loss (minor) 3 | . . . . . . 1 . . . . . . . . . . . . . 2 . . . . . . . . . . Alerts 1 | . . . . . . . . . . . . . . . . . . . . 1 . . . . . . . . . . Weapon Failures 2 | . . . . . . . . . . . . . . . . . . . . . . . . . . 2 . . . . Overload Shots 6 | . . . . . . . . . . . . . . 2 1 . . . . . . . . . . . . 2 . 1 Overflow Damage 11865 | . 176 112 169 . 87 . 9 . . . . 23 . 35 83 27 10 174 . 211 37 . . 8986 115 529 362 498 79 143 Projectiles 1670 | . . . . . . . . . . . . . . 35 83 27 10 . . 83 37 . . 119 70 317 259 419 79 132 Explosions 9751 | . . . 130 . 87 . 1 . . . . 23 . . . . . 174 . 64 . . . 8867 . 212 103 79 . 11 Melee 444 | . 176 112 39 . . . 8 . . . . . . . . . . . . 64 . . . . 45 . . . . . Knockbacks 4 | . . . . . . . 1 1 . . . . . . . . . . . 1 . . . . 1 . . . . . Impact 4 | . . . . . . . 1 1 . . . . . . . . . . . 1 . . . . 1 . . . . . Kinetic . | . . . . . . . . . . . . . . . . . . . . . . . . . . . . . . . Secondary . | . . . . . . . . . . . . . . . . . . . . . . . . . . . . . . . Self-Inflicted Damage 1049 | . 55 . 59 . . 1 71 . . . . 31 . . . . . 45 . 150 . . . 344 . 135 . . 51 107 Shots 19 | . 2 . 2 . . 1 1 . . . . 1 . . . . . 1 . 2 . . . 4 . 3 . . 1 1 Rammed . | . . . . . . . . . . . . . . . . . . . . . . . . . . . . . . . Targets Rammed 33 | . . . 1 1 6 5 3 5 . . . . . 1 . . . . . 3 . . . . 3 2 . 1 2 . Kicked 33 | . . . 1 1 6 5 3 5 . . . . . 1 . . . . . 3 . . . . 3 2 . 1 2 . Crushed . | . . . . . . . . . . . . . . . . . . . . . . . . . . . . . . . Highest Temperature 373 | 18 177 236 16 14 208 243 105 17 5 76 . 57 185 120 88 108 103 151 . 73 136 108 . 210 268 54 373 . . . Average Temperature 43 | 9 38 70 8 8 44 19 30 7 5 48 . 18 65 41 37 47 50 55 . 21 45 34 . 43 42 22 114 . . . Received Heat Transfer 3651 | . 252 140 456 56 192 207 381 288 168 36 . 261 63 234 45 9 45 9 . 81 8 22 . 145 21 258 84 28 136 26 Effects 1 | . . 1 . . . . . . . . . . . . . . . . . . . . . . . . . . . . Energy Bleed 1 | . . 1 . . . . . . . . . . . . . . . . . . . . . . . . . . . . Siege Activations . | . . . . . . . . . . . . . . . . . . . . . . . . . . . . . . . Robots Corrupted 1 | . . . . . . . . . . . . . . . . . . . . . . . . . . 1 . . . . Combat Hostiles 1 | . . . . . . . . . . . . . . . . . . . . . . . . . . 1 . . . . Parts Fried 9 | . 2 . . . . . . . . . . . . . . . . . . 2 . . . . . 5 . . . . Impact Corruptions 12 | . 4 4 . . . . 1 . . . . . . . . . . . . 1 . . . . 2 . . . . . Robots Melted 44 | . . . . . . . . . . . . 1 1 7 1 1 . 1 . 6 2 2 . 3 3 7 5 . 3 1 Combat Hostiles 40 | . . . . . . . . . . . . 1 1 6 1 1 . 1 . 5 2 2 . 2 3 7 5 . 3 . Parts Melted 209 | . 5 2 . 1 . 1 . . . . . 7 10 17 11 8 1 2 . 24 14 5 . 20 8 29 21 1 21 1 Heat Transferred 66995 | 37 2405 3034 374 . 200 300 . . . . . 2625 2725 5250 2425 1537 450 1300 . 5222 3725 1637 101 7064 1987 6323 7360 1830 6900 2184 Parts Sabotaged 3 | . . . . . . . . . . . . . . . . . . . . . . . . . . 1 . . 2 . Parts Stolen . | . . . . . . . . . . . . . . . . . . . . . . . . . . . . . . . Parts Stripped . | . . . . . . . . . . . . . . . . . . . . . . . . . . . . . . . Power Chain Reactions 42 | . . . . . . . . . . . . . . . . . . . . . . . . 39 . 2 . . 1 . Missiles Intercepted . | . . . . . . . . . . . . . . . . . . . . . . . . . . . . . . . Alert | -11 -10 -10 -9 -9 -8 -7 -7 -6 -6 -6 -6 -5 -5 -5 -5 -5 -5 -4 -4 -4 -4 -4 -4 -3 -3 -3 -2 -2 -2 -1 ------- Run | Scr Mat Min Mat Min Mat Fac Sto Fac Low Low Zio Pro Fac Ext Cet Arc Hub Fac Was Fac Upp Upp Zhi Pro Res Tes Res Qua Sec Acc Peak Influence 1603 | 10 922 446 1454 487 847 905 1403 1572 . . . . 580 974 1195 628 267 682 243 1153 . . . . 298 1293 1603 1277 1230 1241 Initial 901 | . 6 351 62 397 . 233 360 637 . . . . 37 210 460 454 149 130 238 170 . . . . 16 127 663 901 717 737 Average 619 | 3 678 311 769 271 406 630 904 919 . . . . 268 567 791 538 206 415 240 421 . . . . 127 827 1108 1034 755 972 Maximum Alert Level 5 | . 3 2 4 2 3 3 4 4 . . . . 2 3 4 2 1 2 1 4 . . . . 1 4 5 4 4 4 Low Security (%) 12 | 100 4 12 6 38 10 . . . . . . . 33 . . . 53 6 . 21 . . . . 76 5 . . . . Level 1 20 | . 8 71 20 22 45 14 5 . . . . . 39 17 . . 46 64 100 50 . . . . 23 . . . . . Level 2 26 | . 22 15 24 38 32 50 19 12 . . . . 27 62 43 100 . 28 . 9 . . . . . 25 5 . 34 . Level 3 30 | . 64 . 14 . 11 35 52 78 . . . . . 20 43 . . . . 12 . . . . . 47 58 75 58 51 Level 4 10 | . . . 32 . . . 22 9 . . . . . . 13 . . . . 5 . . . . . 20 30 24 7 48 Level 5 . | . . . . . . . . . . . . . . . . . . . . . . . . . . . 5 . . . High Security . | . . . . . . . . . . . . . . . . . . . . . . . . . . . . . . . Max Security . | . . . . . . . . . . . . . . . . . . . . . . . . . . . . . . . Squads Dispatched 82 | . 2 . 8 3 5 10 6 7 . . . . 4 . 1 . 1 . . 4 . . . . 6 9 3 3 7 3 Investigation 28 | . 2 . 8 3 3 5 . 1 . . . . 1 . 1 . 1 . . 1 . . . . . 1 . . 1 . Extermination 17 | . . . . . . 2 2 1 . . . . 2 . . . . . . 1 . . . . . 3 2 1 2 1 Reinforcement 17 | . . . . . 2 1 . 3 . . . . 1 . . . . . . 1 . . . . 6 1 . . 2 . Assault 18 | . . . . . . 2 2 2 . . . . . . . . . . . 1 . . . . . 4 1 2 2 2 Garrison 2 | . . . . . . . 2 . . . . . . . . . . . . . . . . . . . . . . . Intercept . | . . . . . . . . . . . . . . . . . . . . . . . . . . . . . . . Searches Triggered . | . . . . . . . . . . . . . . . . . . . . . . . . . . . . . . . Construction Impeded 1 | . . . . . . 1 . . . . . . . . . . . . . . . . . . . . . . . . Haulers Reinforced 5 | . . . . . . . . 2 . . . . 1 . . . . . . . . . . . 2 . . . . . Active Scanning Responses . | . . . . . . . . . . . . . . . . . . . . . . . . . . . . . . . Cargo Convoy Interrupts . | . . . . . . . . . . . . . . . . . . . . . . . . . . . . . . . Stealth | -11 -10 -10 -9 -9 -8 -7 -7 -6 -6 -6 -6 -5 -5 -5 -5 -5 -5 -4 -4 -4 -4 -4 -4 -3 -3 -3 -2 -2 -2 -1 --------- Run | Scr Mat Min Mat Min Mat Fac Sto Fac Low Low Zio Pro Fac Ext Cet Arc Hub Fac Was Fac Upp Upp Zhi Pro Res Tes Res Qua Sec Acc Distress Signals 33 | . 2 . 3 . . . . . . . . . . . 2 . . . . 1 . . . 18 6 1 . . . . Communications Jammed 319 | . . . . . . . 42 10 . . . . 1 27 147 . . . . 32 . . . . . 23 32 1 4 . Distress Signals 317 | . . . . . . . 42 10 . . . . 1 27 147 . . . . 32 . . . . . 23 30 1 4 . Times Spotted 613 | . 18 19 49 9 44 28 43 41 10 11 . 15 18 28 17 8 3 2 4 31 15 6 . 21 9 52 27 19 50 16 Peak Tracking Total 16 | . 3 16 5 4 5 5 8 5 3 6 . 5 4 4 5 1 2 1 4 9 3 1 . 7 2 9 5 10 7 4 Tactical Retreats 8 | . . 2 1 . 1 2 . . 1 . . . . . . . . . . . . . . . . . . 1 . . Traps | -11 -10 -10 -9 -9 -8 -7 -7 -6 -6 -6 -6 -5 -5 -5 -5 -5 -5 -4 -4 -4 -4 -4 -4 -3 -3 -3 -2 -2 -2 -1 ------- Run | Scr Mat Min Mat Min Mat Fac Sto Fac Low Low Zio Pro Fac Ext Cet Arc Hub Fac Was Fac Upp Upp Zhi Pro Res Tes Res Qua Sec Acc Traps Triggered 25 | . 1 1 4 . 1 8 1 1 . . . . 1 . . . . 2 . 1 . . . . . 3 1 . . . Indirectly . | . . . . . . . . . . . . . . . . . . . . . . . . . . . . . . . Trap Hack Attempts . | . . . . . . . . . . . . . . . . . . . . . . . . . . . . . . . Triggered . | . . . . . . . . . . . . . . . . . . . . . . . . . . . . . . . Disarmed 1 | . . . . . . . 1 . . . . . . . . . . . . . . . . . . . . . . . Reprogrammed . | . . . . . . . . . . . . . . . . . . . . . . . . . . . . . . . Reused . | . . . . . . . . . . . . . . . . . . . . . . . . . . . . . . . Traps Extracted . | . . . . . . . . . . . . . . . . . . . . . . . . . . . . . . . Installed 7 | . . . . . . . . . . . . 7 . . . . . . . . . . . . . . . . . . Triggered . | . . . . . . . . . . . . . . . . . . . . . . . . . . . . . . . Machines | -11 -10 -10 -9 -9 -8 -7 -7 -6 -6 -6 -6 -5 -5 -5 -5 -5 -5 -4 -4 -4 -4 -4 -4 -3 -3 -3 -2 -2 -2 -1 ---------- Run | Scr Mat Min Mat Min Mat Fac Sto Fac Low Low Zio Pro Fac Ext Cet Arc Hub Fac Was Fac Upp Upp Zhi Pro Res Tes Res Qua Sec Acc Machines Disabled 235 | . 27 2 46 4 16 21 10 2 . 2 . . 14 4 1 7 . 18 . 26 . 2 . 6 . 9 1 5 10 2 Max in Single Turn 17 | . 3 1 5 2 3 11 2 1 . 1 . . 9 1 1 1 . 10 . 17 . 1 . 2 . 1 1 1 2 1 Garrison Access 12 | . . . . . 1 2 1 1 . . . . 2 . . . . . . 1 . . . . 2 . . 1 . 1 Machines Sabotaged . | . . . . . . . . . . . . . . . . . . . . . . . . . . . . . . . Garrisons Compromised . | . . . . . . . . . . . . . . . . . . . . . . . . . . . . . . . Overloaded Fab Kills . | . . . . . . . . . . . . . . . . . . . . . . . . . . . . . . . Hacking | -11 -10 -10 -9 -9 -8 -7 -7 -6 -6 -6 -6 -5 -5 -5 -5 -5 -5 -4 -4 -4 -4 -4 -4 -3 -3 -3 -2 -2 -2 -1 --------- Run | Scr Mat Min Mat Min Mat Fac Sto Fac Low Low Zio Pro Fac Ext Cet Arc Hub Fac Was Fac Upp Upp Zhi Pro Res Tes Res Qua Sec Acc Machines Accessed 142 | . 8 1 15 4 15 13 10 8 . . . . 9 13 1 . 1 2 . 6 . . 5 . 5 8 2 7 5 4 Terminals 95 | . 7 . 11 2 10 7 7 3 . . . . 5 13 1 . 1 1 . 4 . . . . 2 6 2 6 5 2 Fabricators 10 | . . . . . . 2 . 2 . . . . 2 . . . . 1 . 1 . . . . 1 . . . . 1 Repair Stations 1 | . . . . . 1 . . . . . . . . . . . . . . . . . . . . . . . . . Recycling Units 7 | . 1 . 2 . 2 . 2 . . . . . . . . . . . . . . . . . . . . . . . Scanalyzers 8 | . . . 2 . 1 1 . 2 . . . . . . . . . . . . . . . . . 2 . . . . Garrison Access 13 | . . . . . 1 3 1 1 . . . . 2 . . . . . . 1 . . . . 2 . . 1 . 1 Total Hacks 369 | . 23 1 46 13 37 38 28 25 . . . . 19 24 2 . 1 3 . 22 . . 18 . 9 22 6 12 10 10 Successful 246 | . 12 1 30 6 27 18 16 17 . . . . 16 19 . . 1 3 . 14 . . 18 . 5 17 3 12 6 5 Failed 123 | . 11 . 16 7 10 20 12 8 . . . . 3 5 2 . . . . 8 . . . . 4 5 3 . 4 5 Catastrophic 16 | . 3 . 4 1 1 1 2 . . . . . 1 . 1 . . . . . . . . . 1 1 . . . . Database Lockouts . | . . . . . . . . . . . . . . . . . . . . . . . . . . . . . . . Manual 96 | . 4 . 23 9 11 3 2 7 . . . . 3 4 . . 1 . . 10 . . . . 3 2 4 8 . 2 Terminals 260 | . 19 . 34 11 29 22 23 12 . . . . 13 24 2 . 1 2 . 17 . . . . 4 16 6 11 10 4 Fabricators 27 | . . . . . . 7 . 6 . . . . 4 . . . . 1 . 3 . . . . 3 . . . . 3 Repair Stations 1 | . . . . . 1 . . . . . . . . . . . . . . . . . . . . . . . . . Recycling Units 14 | . 4 . 4 . 2 . 4 . . . . . . . . . . . . . . . . . . . . . . . Scanalyzers 27 | . . . 8 . 4 3 . 6 . . . . . . . . . . . . . . . . . 6 . . . . Garrison Access 19 | . . . . . 1 6 1 1 . . . . 2 . . . . . . 2 . . . . 2 . . 1 . 3 Terminal Hacks 156 | . 7 1 17 6 17 10 12 6 . . . . 9 18 . . . 2 . 7 . . 18 . 1 10 2 5 6 2 Record 8 | . . . . . . . . . . . . . . . . . . . . . . . 6 . . 1 . 1 . . Part Schematic 13 | . . . 1 . . 1 1 1 . . . . 1 1 . . . . . 2 . . 4 . . 1 . . . . Robot Schematic 1 | . . . . . . 1 . . . . . . . . . . . . . . . . . . . . . . . . Robot Analysis 12 | . 1 . . . 2 . 1 1 . . . . 1 . . . . . . . . . 4 . . . 1 . . 1 Prototype ID Bank 22 | . 2 . 2 . 2 2 2 . . . . . 1 4 . . . 1 . . . . 4 . . 1 . . 1 . Open Door 15 | . . 1 . 2 . . 3 . . . . . . 7 . . . . . . . . . . . 1 1 . . . Branch Access Points 7 | . 1 . 1 . . 1 . 1 . . . . . . . . . . . 1 . . . . 1 . . . . 1 Emergency Access Points 2 | . 1 . 1 . . . . . . . . . . . . . . . . . . . . . . . . . . . Machine Index 1 | . . . . . . . . . . . . . . . . . . . . . . . . . . . . . 1 . Terminal Index 5 | . . . . . 1 1 . . . . . . . 1 . . . . . . . . . . . . . 2 . . Fabricator Index 1 | . . . . . . . . . . . . . . 1 . . . . . . . . . . . . . . . . Recycling Unit Index 1 | . . . . . . . . . . . . . . . . . . . . . . . . . . . . 1 . . Garrison Index 1 | . . . . . . . . 1 . . . . . . . . . . . . . . . . . . . . . . Alert Level 6 | . . . 2 . 3 . . . . . . . 1 . . . . . . . . . . . . . . . . . Unreport Threat 16 | . . . 4 3 4 . . . . . . . 1 . . . . . . 1 . . . . . . . . 3 . Locate Traps 7 | . . . . . . . 3 . . . . . . 3 . . . . . . . . . . . 1 . . . . Disarm Traps 1 | . . . . . . . 1 . . . . . . . . . . . . . . . . . . . . . . . Maintenance Status 3 | . . . . . . . . 1 . . . . . . . . . 1 . . . . . . . . . 1 . . Surveillance Status 1 | . . . 1 . . . . . . . . . . . . . . . . . . . . . . . . . . . Patrol Status 3 | . . . 1 . 1 1 . . . . . . . . . . . . . . . . . . . . . . . . Transport Status 3 | . . . 1 . 1 . . . . . . . . . . . . . . 1 . . . . . . . . . . Investigation Status 1 | . . . . . 1 . . . . . . . . . . . . . . . . . . . . . . . . . Reinforcement Status 2 | . . . . . 1 1 . . . . . . . . . . . . . . . . . . . . . . . . Hauler Manifests 10 | . 1 . 2 . 1 2 1 . . . . . . 1 . . . . . 1 . . . . . 1 . . . . Registered Components 6 | . . . 1 . . . . 1 . . . . 1 . . . . . . 1 . . . . . 1 . . 1 . Registered Prototypes 2 | . . . . . . . . . . . . . 1 . . . . . . . . . . . . 1 . . . . Zone Layout 4 | . 1 . . 1 . . . . . . . . 2 . . . . . . . . . . . . . . . . . Protovariant Controls 2 | . . . . . . . . . . . . . . . . . . . . . . . . . . 2 . . . . Fabricator Hacks 12 | . . . . . . 3 . 3 . . . . 2 . . . . 1 . 1 . . . . 1 . . . . 1 Network Status 9 | . . . . . . 2 . 2 . . . . 1 . . . . 1 . 1 . . . . 1 . . . . 1 Load Schematic 1 | . . . . . . 1 . . . . . . . . . . . . . . . . . . . . . . . . Build 2 | . . . . . . . . 1 . . . . 1 . . . . . . . . . . . . . . . . . Repair Station Hacks . | . . . . . . . . . . . . . . . . . . . . . . . . . . . . . . . Recycling Unit Hacks 5 | . 2 . 1 . . . 2 . . . . . . . . . . . . . . . . . . . . . . . Process 1 | . . . . . . . 1 . . . . . . . . . . . . . . . . . . . . . . . Retrieve Matter 1 | . . . . . . . 1 . . . . . . . . . . . . . . . . . . . . . . . Retrieve Components 3 | . 2 . 1 . . . . . . . . . . . . . . . . . . . . . . . . . . . Scanalyzer 24 | . . . 8 . 4 1 . 6 . . . . . . . . . . . . . . . . . 5 . . . . Insert Component 12 | . . . 4 . 2 1 . 3 . . . . . . . . . . . . . . . . . 2 . . . . Analyze 12 | . . . 4 . 2 . . 3 . . . . . . . . . . . . . . . . . 3 . . . . Garrison Access Hacks 11 | . . . . . 1 2 1 . . . . . 2 . . . . . . 1 . . . . 2 . . 1 . 1 Seal Access 11 | . . . . . 1 2 1 . . . . . 2 . . . . . . 1 . . . . 2 . . 1 . 1 Unauthorized Hacks 38 | . 3 . 4 . 5 2 1 2 . . . . 3 1 . . 1 . . 5 . . . . 1 2 1 6 . 1 Terminals 24 | . 3 . 2 . 2 . 1 1 . . . . 1 1 . . 1 . . 4 . . . . . 1 1 6 . . Assimilate 2 | . . . . . . . 1 . . . . . . . . . . . . . . . . . . . . 1 . . Botnet 15 | . 1 . 2 . 2 . . 1 . . . . 1 1 . . . . . 2 . . . . . 1 1 3 . . Detonate 2 | . 1 . . . . . . . . . . . . . . . . . . 1 . . . . . . . . . . Operators 4 | . 1 . . . . . . . . . . . . . . . . . . 1 . . . . . . . 2 . . Sabotage 1 | . . . . . . . . . . . . . . . . . 1 . . . . . . . . . . . . . Fabricators 7 | . . . . . . 2 . . . . . . 2 . . . . . . 1 . . . . 1 . . . . 1 Report 1 | . . . . . . . . . . . . . 1 . . . . . . . . . . . . . . . . . Prioritize 1 | . . . . . . . . . . . . . 1 . . . . . . . . . . . . . . . . . Liberate 1 | . . . . . . 1 . . . . . . . . . . . . . . . . . . . . . . . . Haulers 3 | . . . . . . . . . . . . . . . . . . . . 1 . . . . 1 . . . . 1 Recompile 1 | . . . . . . 1 . . . . . . . . . . . . . . . . . . . . . . . . Repair Stations 1 | . . . . . 1 . . . . . . . . . . . . . . . . . . . . . . . . . Mechanics 1 | . . . . . 1 . . . . . . . . . . . . . . . . . . . . . . . . . Recycling Units 4 | . . . 2 . 2 . . . . . . . . . . . . . . . . . . . . . . . . . Tunnel 4 | . . . 2 . 2 . . . . . . . . . . . . . . . . . . . . . . . . . Scanalyzers 1 | . . . . . . . . . . . . . . . . . . . . . . . . . . 1 . . . . Researchers 1 | . . . . . . . . . . . . . . . . . . . . . . . . . . 1 . . . . Garrison Access 1 | . . . . . . . . 1 . . . . . . . . . . . . . . . . . . . . . . Jam 1 | . . . . . . . . 1 . . . . . . . . . . . . . . . . . . . . . . Data Cores Recovered 8 | . . . . . 2 . . . . . . . . 1 . . . 1 . 1 . . . . . . . 1 2 . Used 5 | . . . . . 2 . . . . . . . . 1 . . . 1 . . . . . . . . . 1 . . Hacking Detections 77 | . 6 . 10 2 7 12 4 5 . . . . 4 3 1 . . 1 . 4 . . . . 3 5 1 1 4 4 Full Trace Events 16 | . 1 . 5 2 . 3 . . . . . . 1 . 1 . . . . 1 . . . . . 1 . . 1 . Feedback Events . | . . . . . . . . . . . . . . . . . . . . . . . . . . . . . . . Feedback Blocked . | . . . . . . . . . . . . . . . . . . . . . . . . . . . . . . . Robot Schematics Acquired 6 | . . . . . . 1 . . . . 4 . . . . . . . . . . . . . . 1 . . . . Robots Built . | . . . . . . . . . . . . . . . . . . . . . . . . . . . . . . . Authchips . | . . . . . . . . . . . . . . . . . . . . . . . . . . . . . . . Time 152 | . . . . . . . . 152 . . . . . . . . . . . . . . . . . . . . . . Total Robot Build Rating . | . . . . . . . . . . . . . . . . . . . . . . . . . . . . . . . Part Schematics Acquired 41 | . . . 5 . 2 1 1 4 . . 15 . 1 1 . . . . . 2 . . 4 . . 5 . . . . Parts Built 1 | . . . . . . . . . . . . . 1 . . . . . . . . . . . . . . . . . Authchips . | . . . . . . . . . . . . . . . . . . . . . . . . . . . . . . . Time 139 | . . . . . . . . . . . . . 139 . . . . . . . . . . . . . . . . . Total Part Build Rating 9 | . . . . . . . . . . . . . 9 . . . . . . . . . . . . . . . . . Parts Repaired . | . . . . . . . . . . . . . . . . . . . . . . . . . . . . . . . Time . | . . . . . . . . . . . . . . . . . . . . . . . . . . . . . . . Parts Recycled . | . . . . . . . . . . . . . . . . . . . . . . . . . . . . . . . Recycled Matter 16 | . . . . . . . 16 . . . . . . . . . . . . . . . . . . . . . . . Retrieved Matter 16 | . . . . . . . 16 . . . . . . . . . . . . . . . . . . . . . . . Retrieved Components 20 | . 10 . 10 . . . . . . . . . . . . . . . . . . . . . . . . . . . Parts Scanalyzed 11 | . . . 4 . 2 1 . 3 . . . . . . . . . . . . . . . . . 1 . . . . Part Schematics Acquired 10 | . . . 4 . 2 . . 3 . . . . . . . . . . . . . . . . . 1 . . . . Parts Damaged 2 | . . . . . . . . 1 . . . . . . . . . . . . . . . . . 1 . . . . Bothacking | -11 -10 -10 -9 -9 -8 -7 -7 -6 -6 -6 -6 -5 -5 -5 -5 -5 -5 -4 -4 -4 -4 -4 -4 -3 -3 -3 -2 -2 -2 -1 ------------ Run | Scr Mat Min Mat Min Mat Fac Sto Fac Low Low Zio Pro Fac Ext Cet Arc Hub Fac Was Fac Upp Upp Zhi Pro Res Tes Res Qua Sec Acc Used RIF Installer . | . . . . . . . . . . . . . . . . . . . . . . . . . . . . . . . Robots Hacked . | . . . . . . . . . . . . . . . . . . . . . . . . . . . . . . . Non-combat . | . . . . . . . . . . . . . . . . . . . . . . . . . . . . . . . Combat . | . . . . . . . . . . . . . . . . . . . . . . . . . . . . . . . Robot Hacks Applied . | . . . . . . . . . . . . . . . . . . . . . . . . . . . . . . . Relay Couplers Released 4 | . . . . . . . . . . . . . 2 . . . . . . . . . . . 1 . . 1 . . Machine Destruction 2 | . . . . . . . . . . . . . 2 . . . . . . . . . . . . . . . . . Programmers 2 | . . . . . . . . . . . . . . . . . . . . . . . . . 1 . . 1 . . Fabnet Peak Effective % . | . . . . . . . . . . . . . . . . . . . . . . . . . . . . . . . Robots Rewired 15 | . . . . . . . . . . . . 1 . 6 . . . . . . 2 2 . 4 . . . . . . Allies Hacked . | . . . . . . . . . . . . . . . . . . . . . . . . . . . . . . . Hacks Repelled . | . . . . . . . . . . . . . . . . . . . . . . . . . . . . . . . Allies | -11 -10 -10 -9 -9 -8 -7 -7 -6 -6 -6 -6 -5 -5 -5 -5 -5 -5 -4 -4 -4 -4 -4 -4 -3 -3 -3 -2 -2 -2 -1 -------- Run | Scr Mat Min Mat Min Mat Fac Sto Fac Low Low Zio Pro Fac Ext Cet Arc Hub Fac Was Fac Upp Upp Zhi Pro Res Tes Res Qua Sec Acc Total Allies 49 | . . 1 . 3 . 2 2 . . . . 1 . 21 . . . . . . 2 2 . 4 . . . 1 . 10 Largest Group 15 | . . 1 . 3 3 2 2 2 . . . 1 1 15 15 4 . . . . 2 2 2 4 4 1 . 1 . 7 Highest-Rated Group 481 | . . 31 . 40 40 42 62 62 . . . 30 30 481 481 229 . . . . 95 94 94 193 193 45 . 10 . 97 Highest-Rated Ally 159 | . . 31 . 16 16 21 31 31 . . . 30 30 159 159 159 . . . . 48 47 47 49 49 45 . 10 . 15 Total Orders 2 | . . . . . . . . . . . . . . . . . . . . . . . . 2 . . . . . . STAY 1 | . . . . . . . . . . . . . . . . . . . . . . . . 1 . . . . . . FOLLOW 1 | . . . . . . . . . . . . . . . . . . . . . . . . 1 . . . . . . Ally Attacks 343 | . . . . 4 25 6 29 7 . . . . 7 53 46 2 . . . . 15 3 . 16 14 1 . . . 115 Total Damage 7391 | . . . . 27 229 98 445 114 . . . . 209 1122 1509 86 . . . . 293 104 . 372 592 151 . . . 2040 Kills 33 | . . . . . 1 1 5 . . . . . 2 4 8 . . . . . 1 . . 1 1 . . . . 9 Allies Corrupted 1 | . . . . . . . . . . . . . . . . . . . . . . 1 . . . . . . . . Allies Melted . | . . . . . . . . . . . . . . . . . . . . . . . . . . . . . . . Intel | -11 -10 -10 -9 -9 -8 -7 -7 -6 -6 -6 -6 -5 -5 -5 -5 -5 -5 -4 -4 -4 -4 -4 -4 -3 -3 -3 -2 -2 -2 -1 ------- Run | Scr Mat Min Mat Min Mat Fac Sto Fac Low Low Zio Pro Fac Ext Cet Arc Hub Fac Was Fac Upp Upp Zhi Pro Res Tes Res Qua Sec Acc Robot Analysis Total 12 | . 1 . . . 2 . 1 1 . . . . 1 . . . . . . . . . 4 . . . 1 . . 1 Derelict Logs Recovered 14 | . . 2 . 1 . . . . 1 2 1 2 . . . . . . . . 3 2 . . . . . . . . Drone Launches . | . . . . . . . . . . . . . . . . . . . . . . . . . . . . . . . Drone Recoveries . | . . . . . . . . . . . . . . . . . . . . . . . . . . . . . . . Exploration | -11 -10 -10 -9 -9 -8 -7 -7 -6 -6 -6 -6 -5 -5 -5 -5 -5 -5 -4 -4 -4 -4 -4 -4 -3 -3 -3 -2 -2 -2 -1 ------------- Run | Scr Mat Min Mat Min Mat Fac Sto Fac Low Low Zio Pro Fac Ext Cet Arc Hub Fac Was Fac Upp Upp Zhi Pro Res Tes Res Qua Sec Acc Turns Passed 39859 | 97 1695 916 2638 884 1634 1203 988 1019 1205 1074 1017 1151 931 824 268 563 79 238 95 954 1321 799 269 13120 1094 1238 699 685 784 377 Spaces Moved 23347 | 105 1340 706 2029 798 1228 1013 690 774 1146 1025 1039 1006 704 571 165 126 56 190 84 598 1147 690 212 2018 935 883 536 680 543 310 Core 127 | 40 . . . . . . . . . . . . . . . . . . . . . . . 87 . . . . . . Treads . | . . . . . . . . . . . . . . . . . . . . . . . . . . . . . . . Legs 20545 | . . . 1465 798 1228 1013 690 774 1146 1025 1039 1006 704 571 165 126 56 190 84 598 1147 690 212 1931 935 883 536 680 543 310 Wheels 2675 | 65 1340 706 564 . . . . . . . . . . . . . . . . . . . . . . . . . . . Hover . | . . . . . . . . . . . . . . . . . . . . . . . . . . . . . . . Flight . | . . . . . . . . . . . . . . . . . . . . . . . . . . . . . . . Fastest Speed 50 | 50 90 90 90 90 90 90 90 90 97 97 97 97 97 105 105 108 108 108 108 102 102 102 102 102 102 92 92 92 92 92 Average Speed 99 | 72 90 90 90 90 90 90 90 96 97 97 97 97 98 105 105 108 108 108 110 103 102 102 102 143 104 95 92 92 92 92 Slowest Speed 450 | 90 90 90 180 90 90 90 90 97 97 97 97 97 105 183 108 108 108 108 112 112 102 102 102 450 105 105 92 92 92 92 Overloaded Moves . | . . . . . . . . . . . . . . . . . . . . . . . . . . . . . . . Propulsion Burnouts . | . . . . . . . . . . . . . . . . . . . . . . . . . . . . . . . Robots Hopped . | . . . . . . . . . . . . . . . . . . . . . . . . . . . . . . . Cave-ins Triggered . | . . . . . . . . . . . . . . . . . . . . . . . . . . . . . . . Teleports 1 | . . . . . . . . . . . . . . . . . . . . . . . . . . . . . 1 . Exploration Rate (%) 64 | 4 97 95 96 99 90 33 92 27 98 95 89 99 19 86 77 89 6 10 79 25 98 85 62 97 37 88 15 69 28 14 Regions Visited 30 Branch Regions 18 Pre-discovered Areas 11 | . . 1 2 1 2 . . . . . 1 . . . . . . . . . . 1 3 . . . . . . . Known Exits Taken 27 | . 1 1 1 1 1 1 1 1 1 1 1 1 1 1 1 1 1 . . 1 1 1 1 1 1 1 1 1 1 . Unknown Exits Taken 1 | 1 . . . . . . . . . . . . . . . . . . . . . . . . . . . . . . Scrap Searched 27 | . . 1 . 2 . . . . 3 5 4 2 . . . . . . . . 4 3 . 3 . . . . . . Spaces Dug 31 | . 1 . 1 . . 2 . . . 3 . . 1 . . . 4 . . 2 . . . . . 3 . . 8 6 Terrain Destroyed 1606 | . 217 . 69 12 98 72 63 47 11 22 . 34 39 25 11 5 10 93 . 124 34 7 . 258 23 136 68 72 35 21 Melee 5 | . 1 . 1 . . 2 . . . . . . 1 . . . . . . . . . . . . . . . . . Projectile 448 | . . . . 1 12 . 39 47 11 22 . . 6 25 11 5 10 3 . 26 34 7 . 22 23 54 27 14 35 14 AOE 1153 | . 216 . 68 11 86 70 24 . . . . 34 32 . . . . 90 . 98 . . . 236 . 82 41 58 . 7 Terrain Rammed . | . . . . . . . . . . . . . . . . . . . . . . . . . . . . . . . Walls Destroyed . | . . . . . . . . . . . . . . . . . . . . . . . . . . . . . . . Machines Disabled . | . . . . . . . . . . . . . . . . . . . . . . . . . . . . . . . Actions | -11 -10 -10 -9 -9 -8 -7 -7 -6 -6 -6 -6 -5 -5 -5 -5 -5 -5 -4 -4 -4 -4 -4 -4 -3 -3 -3 -2 -2 -2 -1 --------- Run | Scr Mat Min Mat Min Mat Fac Sto Fac Low Low Zio Pro Fac Ext Cet Arc Hub Fac Was Fac Upp Upp Zhi Pro Res Tes Res Qua Sec Acc Total 37523 | 115 1544 846 2473 920 1553 1208 937 940 1213 1069 1047 1114 894 726 229 525 65 205 86 829 1249 759 258 12084 1025 1172 653 714 707 364 Wait 11293 | . 24 33 131 65 134 72 61 46 37 6 . 16 96 30 28 362 2 . . 92 19 31 19 9871 8 55 22 1 25 7 Move 23317 | 104 1339 705 2028 797 1227 1012 689 773 1145 1024 1038 1005 703 570 164 125 55 190 83 597 1146 689 211 2017 934 882 535 679 542 309 Hop . | . . . . . . . . . . . . . . . . . . . . . . . . . . . . . . . Pick Up 68 | 1 5 3 5 3 7 4 3 5 . 2 1 2 2 1 . 2 . 1 1 6 3 1 3 1 2 3 . 1 . . Fast Attach 183 | 7 1 5 14 4 4 6 8 4 1 2 1 . 12 4 3 . . 2 1 5 1 2 6 7 15 43 . 2 20 3 Attach 16 | . 1 . 2 1 . 1 . . . 3 . 1 . . . . . . . 1 . . . . 1 3 . 1 1 . Detach 8 | . . 1 1 . . . 1 . . 1 . . 1 . . . . . . . . . . . . 3 . . . . Swap 82 | . 4 6 6 2 4 7 7 1 . 1 2 . 11 1 1 2 . 1 . 10 . . 1 3 3 1 2 2 4 . Drop 210 | . 4 5 12 7 8 6 12 8 1 2 4 1 13 4 3 2 . 1 1 13 3 2 8 8 18 47 . 1 12 4 Fire 1364 | 3 125 68 188 22 120 54 88 64 15 21 1 25 27 41 17 25 8 10 . 39 28 12 5 115 16 65 52 17 70 23 Melee 52 | . 20 3 14 . . 14 . . . . . . 1 . . . . . . . . . . . . . . . . . Ram . | . . . . . . . . . . . . . . . . . . . . . . . . . . . . . . . Kick 33 | . . . 1 1 6 5 3 5 . . . . . 1 . . . . . 3 . . . . 3 2 . 1 2 . Crush . | . . . . . . . . . . . . . . . . . . . . . . . . . . . . . . . Escape Stasis . | . . . . . . . . . . . . . . . . . . . . . . . . . . . . . . . Rewire 122 | . . . . . . . . . . . . 7 . 37 . . . . . . 28 18 . 31 . . . . . 1 Trap 7 | . . . . . . . . . . . . 7 . . . . . . . . . . . . . . . . . . Miscellaneous 768 | . 21 17 71 18 43 27 65 34 14 7 . 50 28 37 13 7 . . . 63 21 4 5 31 25 68 42 9 31 17 Route ------- -11/Scrapyard -10/Materials (discovered 4 exits: *Mat x3 / *Min) -10/Mines (discovered 3 exits: *Mat x2 / [*Exi]) -9/Materials (discovered 5 exits: *Mat x3 / *Min x2) -9/Mines (discovered 2 exits: *Mat x2) -8/Materials (discovered 3 exits: *Fac x3) -7/Factory (discovered 4 exits: *Fac / *Sto / *Low x2) -7/Storage (discovered 2 exits: *Fac / [Rec]) -6/Factory (discovered 5 exits: *Fac x3 / *Low x2) -6/Lower Caves -6/Lower Caves (discovered 2 exits: *Fac / *Zio) -6/Zion (discovered 2 exits: [Dee] / *Pro) -5/Proximity Caves -5/Factory (discovered 4 exits: Fac x2 / *Upp / *Ext) -5/Extension (discovered 3 exits: *Fac x2 / *Cet) -5/Cetus (discovered 2 exits: *Fac / *Arc) -5/Archives (discovered 3 exits: *Fac / *Hub x2) -5/Hub_04(d) -4/Factory -4/Waste -4/Factory (discovered 2 exits: *Upp x2) -4/Upper Caves -4/Upper Caves (discovered 2 exits: *Res / *Zhi) -4/Zhirov -3/Proximity Caves -3/Research (discovered 4 exits: *Res / *Arm / *Tes x2) -3/Testing -2/Research -2/Quarantine (discovered 2 exits: *Acc / *Sec) -2/Section 7 -1/Access (discovered 2 exits: *Sur / Com) To Fleet Rendezvous History --------- Turn | Location | Event 2 | -11/Scrapyard | Met Revision 17 8 | -11/Scrapyard | Discovered new exit (range 12) 37 | -11/Scrapyard | Upgraded with Propulsion slot (x1) 37 | -11/Scrapyard | Upgraded with Utility slot (x1) 37 | -11/Scrapyard | Upgraded with Weapon slot (x1) 98 | -11/Scrapyard | Entered Materials 304 | -10/Materials | Build established: Mutant 450 | -10/Materials | Discovered new exit (range 17) 511 | -10/Materials | Reached level 2 660 | -10/Materials | Identified exit to Mines 1031 | -10/Materials | Discovered new exit (range 6) 1446 | -10/Materials | Reached level 3 1451 | -10/Materials | Upgraded with Utility slot (x1) 1657 | -10/Materials | Discovered new exit (range 11) 1793 | -10/Materials | Entered Mines 1794 | -10/Mines | Assembled infested the area 1797 | -10/Mines | Met a Derelict bent on vengeance 1872 | -10/Mines | Core integrity fell below 50% 1938 | -10/Mines | Destroyed 7 combat bots 2041 | -10/Mines | Core integrity fell below 20% 2233 | -10/Mines | Found a damaged Exp. Sensor Array with a note attached 2235 | -10/Mines | Found Prototype Device 2235 | -10/Mines | Identified Exp. Sensor Array 2290 | -10/Mines | Learned location of Zion (-6) 2317 | -10/Mines | Discovered new exit (range 10) 2317 | -10/Mines | Learned Materials interactive machine intel 2352 | -10/Mines | Reached level 4 2417 | -10/Mines | Discovered new exit (range 16) 2496 | -10/Mines | Received a Mining Laser from a helpful Derelict 2566 | -10/Mines | Deemed a non-threat by the Exiles lab entrance 2567 | -10/Mines | Discovered new exit (range 5) 2626 | -10/Mines | Met a Derelict who couldn't figure out how to use a Trap Extractor 2705 | -10/Mines | Identified exit to Materials 2709 | -10/Mines | Entered Materials 2710 | -9/Materials | Loaded intel: 18 interactive machine locations 2710 | -9/Materials | Core integrity fell below 50% 2710 | -9/Materials | Core integrity fell below 20% 2711 | -9/Materials | Reached level 5 2716 | -9/Materials | Upgraded with Utility slot (x1) 2849 | -9/Materials | Discovered new exit (range 10) 2873 | -9/Materials | Identified exit to Materials 3006 | -9/Materials | Reached level 6 3050 | -9/Materials | Upgraded with Weapon slot (x1) 3311 | -9/Materials | Discovered new exit (range 9) 3319 | -9/Materials | Identified exit to Mines 3428 | -9/Materials | Reached level 7 3445 | -9/Materials | Upgraded with Propulsion slot (x1) 3531 | -9/Materials | Discovered exit to Materials (range 12) 3631 | -9/Materials | Discovered exit to Mines (range 16) 3667 | -9/Materials | Build established: Assassin 3798 | -9/Materials | Discovered exit to Materials (range 13) 3899 | -9/Materials | Reached level 8 4232 | -9/Materials | Build established: Hacker-Assassin 4274 | -9/Materials | Reached level 9 5347 | -9/Materials | Entered Mines 5377 | -9/Mines | Found a hidden stash of uninstalled traps 5436 | -9/Mines | Reached level 10 5485 | -9/Mines | Learned location of Storage (-7) 5552 | -9/Mines | Discovered exit to Materials (range 5) 5592 | -9/Mines | Found the Drone Emporium 5606 | -9/Mines | Found Prototype Device 5606 | -9/Mines | Identified Splice Drone Bay 5628 | -9/Mines | Upgraded with Utility slot (x1) 5753 | -9/Mines | Discovered exit to Materials (range 16) 5759 | -9/Mines | Met a Derelict shopkeep closing up shop 5922 | -9/Mines | A weapon hastily lodged in a ceiling crevice suddenly fell to the ground 5932 | -9/Mines | Learned Materials terminal intel 5943 | -9/Mines | Assisted by bots powering up and referring to "LRC-V3" 6231 | -9/Mines | Entered Materials 6231 | -8/Materials | Accompanied by 3 allies 6232 | -8/Materials | Loaded intel: 12 terminal locations 6233 | -8/Materials | Reached level 11 6278 | -8/Materials | Upgraded with Power slot (x1) 6383 | -8/Materials | Discovered new exit (range 17) 6414 | -8/Materials | Identified exit to Factory 6483 | -8/Materials | Reached level 12 7235 | -8/Materials | Build established: Hacker-Skirmisher 7244 | -8/Materials | Discovered exit to Factory (range 16) 7374 | -8/Materials | Reached level 13 7801 | -8/Materials | Discovered exit to Factory (range 8) 7865 | -8/Materials | Entered Factory 7867 | -7/Factory | Reached level 14 7867 | -7/Factory | Upgraded with Weapon slot (x1) 7908 | -7/Factory | Discovered new exit (range 9) 7917 | -7/Factory | Identified exit to Lower Caves 8038 | -7/Factory | Reached level 15 8265 | -7/Factory | First assault squad dispatched 8428 | -7/Factory | Discovered new exit (range 13) 8440 | -7/Factory | Identified exit to Factory 8910 | -7/Factory | Identified exit to Storage 9068 | -7/Factory | Entered Storage 9070 | -7/Storage | Reached level 16 9199 | -7/Storage | Destroyed 7 combat bots 9224 | -7/Storage | Build established: Hacker-Assassin 9270 | -7/Storage | Found Prototype Protection 9270 | -7/Storage | Identified Lgt. Regenerative Plating 9280 | -7/Storage | Garrison activated, responded to threat 9367 | -7/Storage | Discovered new exit (range 12) 9521 | -7/Storage | Upgraded with Utility slot (x1) 9595 | -7/Storage | Reached level 17 9662 | -7/Storage | Discovered exit to Factory (range 5) 9908 | -7/Storage | Met a pair of Derelict thieves 10056 | -7/Storage | Entered Factory 10056 | -6/Factory | Accompanied by 2 allies 10058 | -6/Factory | Reached level 18 10060 | -6/Factory | Upgraded with Propulsion slot (x1) 10061 | -6/Factory | Discovered new exit (range 15) 10237 | -6/Factory | Build established: Hacker-Skirmisher 10254 | -6/Factory | Identified exit to Lower Caves 10256 | -6/Factory | Discovered new exit (range 15) 10270 | -6/Factory | Identified exit to Factory 10406 | -6/Factory | First assault squad dispatched 10712 | -6/Factory | Discovered exit to Factory (range 8) 10808 | -6/Factory | Reached level 19 11075 | -6/Factory | Entered Lower Caves 11836 | -6/Lower Caves | Learned Factory emergency access door positions 12019 | -6/Lower Caves | Reached level 20 12074 | -6/Lower Caves | Discovered new exit (range 7) 12080 | -6/Lower Caves | Identified exit to Lower Caves 12280 | -6/Lower Caves | Entered another Lower Caves area 12308 | -6/Lower Caves | Encountered a Warlord checkpoint 12357 | -6/Lower Caves | Discovered exit to Factory (range 14) 12376 | -6/Lower Caves | Attacked by a delusional Derelict stockpiling parts 12415 | -6/Lower Caves | Upgraded with Weapon slot (x1) 12650 | -6/Lower Caves | Found Alien Artifact 12650 | -6/Lower Caves | Identified Core Expander 12650 | -6/Lower Caves | Installed Core Expander, added new Utility slot 12683 | -6/Lower Caves | Attracted the attention of an 0b10 checkpoint 12918 | -6/Lower Caves | Spotted B-75 Beast 12936 | -6/Lower Caves | Destroyed B-75 Beast 12975 | -6/Lower Caves | Learned Factory emergency access door positions 13029 | -6/Lower Caves | Discovered new exit (range 14) 13156 | -6/Lower Caves | Core integrity fell below 50% 13293 | -6/Lower Caves | Learned location of 1 exit from Factory 13353 | -6/Lower Caves | Identified exit to Zion 13354 | -6/Lower Caves | Entered Zion 13435 | -6/Zion | Discovered new exit (range 16) 13452 | -6/Zion | Identified exit to Proximity Caves 13479 | -6/Zion | Found GAL Module 13680 | -6/Zion | Visited the Megawrench Repair Shop 13681 | -6/Zion | Build established: Hacker-Mutant 13721 | -6/Zion | Discovered new exit (range 16) 13916 | -6/Zion | Learned Factory machine intel 14165 | -6/Zion | Found Prototype Energy Gun 14165 | -6/Zion | Identified Storm Laser 14371 | -6/Zion | Entered Proximity Caves 14387 | -5/Proximity Caves | Reached level 21 14464 | -5/Proximity Caves | Build established: Hacker-Skirmisher 14834 | -5/Proximity Caves | Learned location of 2 exits from Factory 15134 | -5/Proximity Caves | Learned Factory emergency access door positions 15261 | -5/Proximity Caves | Discovered exit to Factory (range 14) 15372 | -5/Proximity Caves | Attracted the attention of an 0b10 outpost 15522 | -5/Proximity Caves | Entered Factory 15522 | -5/Factory | Accompanied by 1 ally 15523 | -5/Factory | Identified exit to Factory 15523 | -5/Factory | Identified exit to Upper Caves 15525 | -5/Factory | Loaded intel: 319 machine locations 15674 | -5/Factory | Reached level 22 16001 | -5/Factory | Discovered new exit (range 12) 16161 | -5/Factory | Spotted B-75 Beast 16168 | -5/Factory | Destroyed B-75 Beast 16328 | -5/Factory | Build established: Hacker-Assassin 16404 | -5/Factory | Fabricated Centrium Leg (x1) 16448 | -5/Factory | Identified exit to Extension 16453 | -5/Factory | Entered Extension 16453 | -5/Extension | Accompanied by 1 ally 16455 | -5/Extension | Reached level 23 16455 | -5/Extension | Upgraded with Power slot (x1) 16552 | -5/Extension | Rescued a captive Derelict 16554 | -5/Extension | Rescued a captive Derelict 16648 | -5/Extension | Rescued a captive Derelict 16649 | -5/Extension | Rescued a captive Derelict 16703 | -5/Extension | Rescued a captive Derelict 16709 | -5/Extension | Rescued a captive Derelict 16722 | -5/Extension | Spotted B-75 Beast 16725 | -5/Extension | Rescued a captive Derelict 16726 | -5/Extension | Rescued a captive Derelict 16734 | -5/Extension | Spotted B-75 Beast 16741 | -5/Extension | Allies destroyed B-75 Beast 16742 | -5/Extension | Destroyed B-75 Beast 16768 | -5/Extension | Discovered exit to Factory (range 14) 16986 | -5/Extension | Rescued a captive Derelict 16986 | -5/Extension | Rescued a captive Derelict 17003 | -5/Extension | Rescued a captive Derelict 17005 | -5/Extension | Rescued a captive Derelict 17063 | -5/Extension | Rescued a captive Derelict 17089 | -5/Extension | Rescued a captive Derelict 17217 | -5/Extension | Rescued A7 17240 | -5/Extension | Discovered exit to Factory (range 10) 17241 | -5/Extension | Discovered new exit (range 6) 17256 | -5/Extension | Identified exit to Cetus 17277 | -5/Extension | Entered Cetus 17277 | -5/Cetus | Accompanied by 15 allies (A7) 17282 | -5/Cetus | Acquired a Cetus Manufacturing Module code from A7 17294 | -5/Cetus | Spotted Cetus Guard 17294 | -5/Cetus | Spotted Cetus Guard 17295 | -5/Cetus | Spotted Cetus Guard 17299 | -5/Cetus | Spotted Cetus Guard 17306 | -5/Cetus | Destroyed Cetus Guard 17312 | -5/Cetus | Allies destroyed Cetus Guard 17316 | -5/Cetus | Destroyed Cetus Guard 17322 | -5/Cetus | Destroyed Cetus Guard 17385 | -5/Cetus | Escorted A7 to Cetus Mainframe 17385 | -5/Cetus | Reached level 24 17406 | -5/Cetus | Discovered new exit (range 18) 17433 | -5/Cetus | Spotted Cetus Guard 17434 | -5/Cetus | Spotted Cetus Guard 17436 | -5/Cetus | Spotted Cetus Guard 17438 | -5/Cetus | Spotted Cetus Guard 17439 | -5/Cetus | Destroyed Cetus Guard 17445 | -5/Cetus | Destroyed Cetus Guard 17449 | -5/Cetus | Discovered exit to Factory (range 18) 17450 | -5/Cetus | Allies destroyed Cetus Guard 17453 | -5/Cetus | Allies destroyed Cetus Guard 17456 | -5/Cetus | Upgraded with Propulsion slot (x1) 17457 | -5/Cetus | Met Revision 17 17521 | -5/Cetus | Identified exit to Archives 17545 | -5/Cetus | Entered Archives 17545 | -5/Archives | Accompanied by 4 allies (A7) 17550 | -5/Archives | Received a hacking code to weaken MAIN.C 17593 | -5/Archives | Discovered exit to Factory (range 16) 17694 | -5/Archives | Discovered new exit (range 14) 17709 | -5/Archives | Discovered new exit (range 17) 18001 | -5/Archives | Build established: Generator-Mutant 18107 | -5/Archives | Identified exit to Hub_04(d) 18108 | -5/Archives | Entered Hub_04(d) 18108 | -5/Hub_04(d) | Discovered exit to Factory (range 10) 18187 | -5/Hub_04(d) | Entered Factory 18189 | -4/Factory | Reached level 25 18357 | -4/Factory | Spotted B-86 Titan 18365 | -4/Factory | Destroyed B-86 Titan 18425 | -4/Factory | Sucked down chute 18425 | -4/Factory | Entered Waste 18440 | -4/Waste | EMP discharged 18445 | -4/Waste | Build established: Generator-Skirmisher 18448 | -4/Waste | Spotted C-40 Crusher 18454 | -4/Waste | Spotted C-40 Crusher 18458 | -4/Waste | Spotted C-40 Crusher 18460 | -4/Waste | Crushed by Compactor (1 part destroyed, 2 dropped) 18488 | -4/Waste | Found Prototype Device 18497 | -4/Waste | Spotted C-40 Crusher 18498 | -4/Waste | Spotted C-40 Crusher 18500 | -4/Waste | Discovered new exit (range 15) 18500 | -4/Waste | Spotted C-40 Crusher 18519 | -4/Waste | Identified exit to Factory 18520 | -4/Waste | Entered Factory 18520 | -4/Factory | Identified Exp. Thermal Shield 18529 | -4/Factory | Identified exit to Upper Caves 18893 | -4/Factory | Core integrity fell below 50% 18924 | -4/Factory | Destroyed 9 combat bots 19146 | -4/Factory | Reached level 26 19270 | -4/Factory | First assault squad dispatched 19474 | -4/Factory | Entered Upper Caves 19614 | -4/Upper Caves | Spotted B-86 Titan 19633 | -4/Upper Caves | Destroyed B-86 Titan 19871 | -4/Upper Caves | Attracted the attention of an 0b10 outpost 20283 | -4/Upper Caves | Learned Research interactive machine intel 20293 | -4/Upper Caves | Learned 8 Research zone layouts 20416 | -4/Upper Caves | Discovered new exit (range 16) 20427 | -4/Upper Caves | Identified exit to Upper Caves 20715 | -4/Upper Caves | Learned Research stockpile data 20795 | -4/Upper Caves | Entered another Upper Caves area 20795 | -4/Upper Caves | Accompanied by 1 ally 20843 | -4/Upper Caves | Discovered new exit (range 13) 20866 | -4/Upper Caves | Identified exit to Research 20878 | -4/Upper Caves | Learned location of Testing (-3) 21204 | -4/Upper Caves | Spotted B-86 Titan 21207 | -4/Upper Caves | Destroyed B-86 Titan 21437 | -4/Upper Caves | Attracted the attention of an 0b10 outpost 21439 | -4/Upper Caves | Reached level 27 21487 | -4/Upper Caves | Destroyed 7 combat bots 21517 | -4/Upper Caves | Discovered new exit (range 10) 21528 | -4/Upper Caves | Identified exit to Zhirov 21558 | -4/Upper Caves | Found Alien Artifact 21558 | -4/Upper Caves | Identified Dimensional Node Initializer 21558 | -4/Upper Caves | Initialized slip node 21594 | -4/Upper Caves | Entered Zhirov 21594 | -4/Zhirov | Accompanied by 2 allies 21594 | -4/Zhirov | Discovered new exit (range 3) 21601 | -4/Zhirov | Identified exit to Proximity Caves 21617 | -4/Zhirov | Met Zhirov 21639 | -4/Zhirov | Learned location of Quarantine (-2) 21657 | -4/Zhirov | Zhirov requested help retrieving the SGEMP Prototype 21681 | -4/Zhirov | Found Alien Artifact 21681 | -4/Zhirov | Identified Integrated Reactor 21681 | -4/Zhirov | Installed Integrated Reactor, increased core energy generation (+10) 21814 | -4/Zhirov | Found Alien Artifact 21863 | -4/Zhirov | Entered Proximity Caves 21863 | -3/Proximity Caves | Accompanied by 2 allies 21918 | -3/Proximity Caves | Attracted the attention of an 0b10 outpost 21934 | -3/Proximity Caves | Attracted the attention of an 0b10 checkpoint 21979 | -3/Proximity Caves | Destroyed 11 combat bots 22119 | -3/Proximity Caves | Spotted B-86 Titan 22124 | -3/Proximity Caves | Destroyed B-86 Titan 22649 | -3/Proximity Caves | Reached level 28 22846 | -3/Proximity Caves | Upgraded with Propulsion slot (x1) 22924 | -3/Proximity Caves | Discovered exit to Research (range 18) 34542 | -3/Proximity Caves | Build established: Generator-Mutant 34983 | -3/Proximity Caves | Entered Research 34983 | -3/Research | Accompanied by 4 allies 34986 | -3/Research | Loaded intel: 46 interactive machine locations 35183 | -3/Research | Revision forces began assault on 0b10 35223 | -3/Research | Met up with Revision 17++ 35287 | -3/Research | Discovered new exit (range 17) 35306 | -3/Research | Identified exit to Armory 35375 | -3/Research | Discovered new exit (range 4) 35388 | -3/Research | Identified exit to Research 35423 | -3/Research | Found Prototype Device 35423 | -3/Research | Identified Exp. Shield Generator 35475 | -3/Research | Build established: Generator-Skirmisher 35539 | -3/Research | Found Prototype Device 35539 | -3/Research | Identified Imp. Particle Accelerator 35549 | -3/Research | Found Imp. Particle Accelerator 35558 | -3/Research | Reached level 29 35636 | -3/Research | Identified exit to Testing 35683 | -3/Research | Research terminal network offline 35699 | -3/Research | Upgraded with Utility slot (x1) 35796 | -3/Research | Build established: Generator-Gunner 36077 | -3/Research | Entered Testing 36077 | -3/Testing | Accompanied by 1 ally 36107 | -3/Testing | Found Prototype Hackware 36107 | -3/Testing | Identified Ghost Barrier 36127 | -3/Testing | Protovariant out of control (PG-UH7DT8LWSW) 36127 | -3/Testing | Unleashed a protovariant (PG-UH7DT8LWSW) 36250 | -3/Testing | Found Prototype Device 36250 | -3/Testing | Identified Exp. ECM Suite 36282 | -3/Testing | Identified Transdimensional Reconstructor 36300 | -3/Testing | Spotted Striker 36300 | -3/Testing | Spotted Striker 36309 | -3/Testing | Destroyed Striker 36320 | -3/Testing | Destroyed Striker 36335 | -3/Testing | Spotted Alpha 7 36339 | -3/Testing | Core integrity fell below 50% 36340 | -3/Testing | Destroyed Alpha 7 36355 | -3/Testing | Stole the SGEMP Prototype 36429 | -3/Testing | Build established: Generator-Skirmisher 36526 | -3/Testing | Found Prototype Leg 36526 | -3/Testing | Identified Myomer Exoskeleton 36599 | -3/Testing | Found Prototype Launcher 36599 | -3/Testing | Identified Tactical Quantum Warhead 36610 | -3/Testing | First assault squad dispatched 36622 | -3/Testing | Reached level 30 36647 | -3/Testing | Upgraded with Weapon slot (x1) 36857 | -3/Testing | Found Prototype Ballistic Cannon 36923 | -3/Testing | Destroyed 8 combat bots 37108 | -3/Testing | Found Prototype Energy Cannon 37108 | -3/Testing | Identified Imp. Potential Cannon 37110 | -3/Testing | Identified Omega Cannon 37162 | -3/Testing | Discovered exit to Research (range 18) 37228 | -3/Testing | Found Prototype Hackware 37228 | -3/Testing | Identified System Mapper 37269 | -3/Testing | Found Prototype Launcher 37269 | -3/Testing | Identified Containment Facilitator 37315 | -3/Testing | Entered Research 37317 | -2/Research | Reached level 31 37615 | -2/Research | First assault squad dispatched 37707 | -2/Research | Build established: Hacker-Skirmisher 37820 | -2/Research | Spotted B-90 Cyclops 37825 | -2/Research | Destroyed B-90 Cyclops 37849 | -2/Research | Destroyed 9 combat bots 37930 | -2/Research | Discovered new exit (range 8) 37935 | -2/Research | Identified exit to Quarantine 38014 | -2/Research | Entered Quarantine 38016 | -2/Quarantine | Reached level 32 38018 | -2/Quarantine | Upgraded with Utility slot (x1) 38047 | -2/Quarantine | Found Alien Artifact 38217 | -2/Quarantine | Found Alien Artifact 38217 | -2/Quarantine | Identified Terrabomb 38217 | -2/Quarantine | Used Terrabomb 38403 | -2/Quarantine | Discovered new exit (range 14) 38514 | -2/Quarantine | First assault squad dispatched 38562 | -2/Quarantine | Destroyed 9 combat bots 38587 | -2/Quarantine | Cryocooling Duct disabled 38602 | -2/Quarantine | Ambient heat levels rising (+20) 38602 | -2/Quarantine | Non-combat units ordered to evacuate 38632 | -2/Quarantine | Spotted Fortress 38695 | -2/Quarantine | Discovered new exit (range 6) 38699 | -2/Quarantine | Identified exit to Section 7 38699 | -2/Quarantine | Entered Section 7 38753 | -2/Section 7 | Spotted S7 Guard 38760 | -2/Section 7 | Destroyed S7 Guard 38784 | -2/Section 7 | Found Alien Artifact 38784 | -2/Section 7 | Identified Navigation Efficiency Matrix 38784 | -2/Section 7 | Installed Navigation Efficiency Matrix, process failed with unexpected side effects 38806 | -2/Section 7 | Reached level 33 38812 | -2/Section 7 | Upgraded with Weapon slot (x1) 38872 | -2/Section 7 | Found Alien Artifact 38872 | -2/Section 7 | Identified Core Reset Matrix 38872 | -2/Section 7 | Identified Subatomic Replicator 38872 | -2/Section 7 | Used Core Reset Matrix 38876 | -2/Section 7 | Sensed 18 artifacts in vicinity 38941 | -2/Section 7 | Spotted S7 Guard 38975 | -2/Section 7 | First assault squad dispatched 39017 | -2/Section 7 | Found Integrated Thermoelectric Network 39017 | -2/Section 7 | Installed Integrated Thermoelectric Network, gained heat-energy exchange potential 39101 | -2/Section 7 | Spotted S7 Guard 39114 | -2/Section 7 | Destroyed S7 Guard 39185 | -2/Section 7 | Found Core Membrane 39185 | -2/Section 7 | Installed Core Membrane, gained immunity to corruption 39339 | -2/Section 7 | Spotted S7 Guard 39353 | -2/Section 7 | Scanned by Researcher 39368 | -2/Section 7 | Destroyed S7 Guard 39396 | -2/Section 7 | Core integrity fell below 50% 39407 | -2/Section 7 | Core integrity fell below 20% 39439 | -2/Section 7 | Warped through subspace 39456 | -2/Section 7 | Destroyed 10 combat bots 39458 | -2/Section 7 | Discovered new exit (range 10) 39482 | -2/Section 7 | Identified exit to Access 39483 | -2/Section 7 | Entered Access 39484 | -1/Access | Emitted hypermatrix ping 39484 | -1/Access | Core integrity fell below 50% 39484 | -1/Access | Attacked by Zhirov 39485 | -1/Access | Reached level 34 39489 | -1/Access | Assembled emerged from beneath the floor 39489 | -1/Access | Core integrity fell below 20% 39497 | -1/Access | Destroyed Zhirov 39501 | -1/Access | Allies destroyed Svarog 39506 | -1/Access | Destroyed Perun 39681 | -1/Access | Found Prototype Device 39681 | -1/Access | Identified Exp. Actuator Array 39733 | -1/Access | First assault squad dispatched 39780 | -1/Access | Identified exit to Command 39799 | -1/Access | Spotted B-99 Colossus 39803 | -1/Access | Destroyed B-99 Colossus 39806 | -1/Access | Spotted B-99 Colossus 39837 | -1/Access | Discovered new exit (range 16) 39859 | -1/Access | Identified exit to Surface 39860 | *** | Heading to fleet! Last Messages --------------- 39845_ Main Access Shell breached. 39846_ U-05 Engineer lays Concrete. 39846_ K-01 Serf collects debris. 39847_ Slug penetrates Sealed Heavy Doors. 39848_ U-05 Engineer lays Concrete. 39851_ Navigation matrix triggers involuntary quantum shift. 39851_ 2N-1CE's Frost Array blasted off. 39851_ Knocked back. 39851_ Penetrated by Slug. 39851_ Slug penetrates Reinforced Barrier. 39851_ Penetrated by Slug. 39851_ Slug penetrates Reinforced Barrier. 39852_ U-05 Engineer builds a Wall. 39853_ K-01 Serf collects debris. 39855_ Slug penetrates Sealed Heavy Doors. 39856_ U-05 Engineer builds a Wall. 39859_ EXIT=IDENTIFIED: SURFACE [Achievement: Torch] [Achievement: By A Hair] [Achievement: Victory By Combat] Map ----- +----------------------------------------------------+ | ??????????? ""# # %################??#???? | | ??????????? ? ""# #% #"############?###????? | | ??????????? ""# # % # ##?####? ?? | | ?????????? ?? S#! # k # ###?##????? | | ????????? ""# # # % ###?#?#? ?? | | ???????#?? ""# # # ###?#?????? | | ?????????? ?"# " ######?#?? | | ????????? # " ##?#???? | | ????????? ? ? # #u % # ?? ????? | | ?????#?? ? ???#######u """##############???? | | ??????????? #### % #########?#?###???? | | ???A??#? ?? ?#### % #########?##???##??? | | ?????#?? ? ?#### #####?##?###?###? ?? | | ???????# #??# ############?#?#?#?? | | ???????#?? ? #### % #########?##????##?? | | ???t?#???? ? ####%% BB ######?#?####?##???? | | ?????????##??#?##### !% BB ##########?#?####??? | | ???????? ? ??###### % ##########?#?#?##??? | | ??????? "??###""" """"""#######?#??#??#????? | | ????? ? ?? ""#####"" """"""#########???#???#??? | | ??????? ?""##?##""" """"""########???##??????? | | ????????? ??""##?## ######??#?#????????? | | ????????? ?? ""????# " """" #########??????????? | | ?????????? ? T"?##?# " " ?###?#?##???????????? | | ???????? u ""##?## ?" "" " #??#?#??#??????????? | | ???????? ? ""?#### " "@ " ##??#? ?"??????????? | | ????????? ?? ""??###? " " ???###Y?????????????? | | ??????????? ?""##?#? """""" #????#?????????????? | | ????????? ? "#??## ? ??##?? ????????????? | | ?????????? ??#?#??##? ?? ?##?#???????????????? | | ???????????? #??#?#?""""?"????"##????? ??????????? | | ???????????? #?###?#"" ? ?? ?????##?????????????? | | ?????????????#??#?#?"" ?? ??#?#???????????????? | | ?????????????#?#?###?" ? ?? ???#?#??????????????? | | ??????????????####??? ?? ? ?#???#??????????????? | | ??????????????????##?"???? ? ??#????????????????? | | ???????????????#???????? ???? ???????????????????? | | ?????????????????????????????????????????????????? | | ??????????????????????? ??? ? ?p??A??????????????? | | ?????????????????????????????????????????????????? | | ?????????????????????????????????????????????????? | | ?????????????????????????????????????????????????? | | ?????????????????????????????????????????????????? | | ?????????????????????????????????????????????????? | | ?????????????????????????????????????????????????? | | ?????????????????????????????????????????????????? | | ?????????????????????????????????????????????????? | | ?????????????????????????????????????????????????? | | ?????????????????????????????????????????????????? | | ?????????????????????????????????????????????????? | +----------------------------------------------------+ Best States ------------- Heat Dissipation 179 Coolant Potential 80 Energy Generation 85 Energy Capacity 1980 Matter Stores 400 Matter Capacity 400 Sight Range 19 Robot Scan Range 26 Terrain Scan Range 16 Terrain Scan Density 510 Jamming Range 16 Base Temperature (-) 200 Armor Coverage 150 Resistance: KI 25 Resistance: TH 15 Resistance: EX 10 Weapon Cycling 20 Evasion (%) 60 Matter Filtering 30 Particle Charging 60 Kinecelleration 30 Offensive Hacking 40 Defensive Hacking 30 Authchip Count 1 Item Schematics ----------------- None Robot Schematics ------------------ None Fabricated ------------ Centrium Leg | x1 | -5/Factory | Preloaded Alien Tech Used ----------------- Core Expander Dimensional Node Initializer Integrated Reactor Terrabomb Navigation Efficiency Matrix Core Reset Matrix Integrated Thermoelectric Network Core Membrane Transdimensional Reconstructor Achievements -------------- By A Hair Equal Opportunity Bot Executioner Giant Slayer Pyromaniac Torch Treasure Hunter Victory By Combat Challenges ------------ None RPGLIKE | -11 -10 -10 -9 -9 -8 -7 -7 -6 -6 -6 -6 -5 -5 -5 -5 -5 -5 -4 -4 -4 -4 -4 -4 -3 -3 -3 -2 -2 -2 -1 --------- Run | Scr Mat Min Mat Min Mat Fac Sto Fac Low Low Zio Pro Fac Ext Cet Arc Hub Fac Was Fac Upp Upp Zhi Pro Res Tes Res Qua Sec Acc Levels Raised 33 | . 2 1 5 1 3 2 2 2 1 . . 1 1 1 1 . . 1 . 1 . 1 . 1 1 1 1 1 1 1 XP Earned 53766 | 3000 3466 1256 8467 800 4634 3757 2208 3479 492 381 152 1661 1988 1405 850 225 222 1332 67 1428 541 307 113 1434 1522 1840 2423 955 1506 1855 XP Spent 50995 | 2960 2950 . 8890 1675 4500 1350 3025 4510 . 1400 200 1475 1530 1350 1400 . . 1750 . 1100 . 675 . 1700 2210 1700 . 2300 2345 . Upgrades 104 | 13 13 . 23 3 11 2 6 7 . 1 1 3 4 2 1 . . 1 . 2 . 2 . 1 2 1 . 1 4 . Power Slot 2 | . . . . . 1 . . . . . . . . 1 . . . . . . . . . . . . . . . . Propulsion Slot 5 | 1 . . 1 . . . . 1 . . . . . . 1 . . . . . . . . 1 . . . . . . Utility Slot 7 | 1 1 . 1 1 . . 1 . . . . . . . . . . . . . . . . . 1 . . 1 . . Weapon Slot 6 | 1 . . 1 . . 1 . . . 1 . . . . . . . . . . . . . . . 1 . . 1 . Core Integrity 11 | 4 . . 2 . . . . . . . . . 2 . . . . . . . . . . . . . . . 3 . Heat Dissipation 9 | . . . . 1 4 . . 3 . . . . . . . . . . . . . . . . 1 . . . . . Energy Generation 2 | . . . 2 . . . . . . . . . . . . . . . . . . . . . . . . . . . Energy Storage 7 | . . . 1 1 . 1 . . . . . 1 . . . . . . . 1 . 2 . . . . . . . . Matter Storage 2 | . . . . . . . 2 . . . . . . . . . . . . . . . . . . . . . . . Mass Support 2 | . . . . . 2 . . . . . . . . . . . . . . . . . . . . . . . . . Inventory Capacity 7 | 2 1 . . . 2 . . 1 . . . . . . . . . 1 . . . . . . . . . . . . Sight Range 2 | 1 . . . . 1 . . . . . . . . . . . . . . . . . . . . . . . . . Sensor Range 13 | . 4 . 8 . 1 . . . . . . . . . . . . . . . . . . . . . . . . . Terrain Scan Density 5 | . 5 . . . . . . . . . . . . . . . . . . . . . . . . . . . . . Ranged Accuracy 5 | . . . 3 . . . . . . . . 1 1 . . . . . . . . . . . . . . . . . Hack Attack % 4 | . 1 . 1 . . . . 2 . . . . . . . . . . . . . . . . . . . . . . Hack Defense % 2 | . 1 . 1 . . . . . . . . . . . . . . . . . . . . . . . . . . . KI Resistance % 3 | 1 . . . . . . 1 . . . . . 1 . . . . . . . . . . . . . . . . . TH Resistance % 3 | 1 . . . . . . 1 . . . . . . 1 . . . . . . . . . . . . . . . . EX Resistance % 2 | 1 . . . . . . 1 . . . . . . . . . . . . . . . . . . . . . . . KI Damage % 2 | . . . 2 . . . . . . . . . . . . . . . . . . . . . . . . . . . TH Damage % 3 | . . . . . . . . . . . 1 1 . . . . . . . 1 . . . . . . . . . . Protomatter Created 7931 | . 144 127 427 169 306 309 598 401 107 59 . 382 194 366 203 79 . . . 797 444 153 . 538 106 726 593 110 537 56 Integrity Restored 15592 | . 426 315 1518 332 810 528 1319 693 321 123 . 1119 563 745 215 90 . . . 1311 374 37 91 610 509 1455 877 180 656 375 Core 12431 | . 378 315 1518 125 621 378 981 500 321 123 . 968 364 544 142 63 . . . 1050 185 35 69 469 417 1166 763 48 513 375 Parts 3161 | . 48 . . 207 189 150 338 193 . . . 151 199 201 73 27 . . . 261 189 2 22 141 92 289 114 132 143 . Protomatter Decayed 6110 | . . 21 . 75 65 64 188 162 . 18 64 . 41 254 206 138 . . . 372 284 140 51 374 2745 306 211 . 331 . Game ------ Seed FlyingCompactWheel Manual? 0 Play Time 05:48:49 Cumulative 228.4 hours Start 2022.05.18 @ 04:49:55 End 2022.05.18 @ 18:04:46 Sessions 3 Manual Loads 0 Difficulty Rogue Special Mode Winter2019/RPGLIKE Game No. 157 Rogue 134 Adventurer 6 Explorer 17 Win Type 2 Total 16 Types 9/0/3/1/0/1/1/1/0 Lore% 92 Gallery% 91 Achievement% 71 Wizard Run 0 Options --------- ASCII 0 Keyboard 0 Movement Numpad Keybinds 0 Fullscreen 1 Font 12/Fuzzy Map View 83x54 Tactical HUD 1 Map Filters NONE Filters NONE Steam 1 RUN: c3a24207-f839-4eba-a309-3a183af77cbf